Publisher Label,Publisher URI,"Supplier","Net Amount (£)","Organisational Unit","Merchant Category Code","Purpose","Payment Date"
"Wolverhampton City Council","http://opendatacommunities.org/id/metropolitan-district-council/wolverhampton","Amazon UK Marketplace","22.88","Legal Services","5942","Equipment - Purchase","31/05/2017"
"Wolverhampton City Council","http://opendatacommunities.org/id/metropolitan-district-council/wolverhampton","ALDI","7.66","LAC Transitions Team","5411","Client Allowances","31/05/2017"
"Wolverhampton City Council","http://opendatacommunities.org/id/metropolitan-district-council/wolverhampton","VISTAPR VistaPrint.com","11.98","Global Budgets","2741","Publications","31/05/2017"
"Wolverhampton City Council","http://opendatacommunities.org/id/metropolitan-district-council/wolverhampton","HIGHFIELD HOUSE HO","385.00","CIN/CP Social Work Unit - Area 3","7011","No Recourse to Public Funds","31/05/2017"
"Wolverhampton City Council","http://opendatacommunities.org/id/metropolitan-district-council/wolverhampton","ZEPHYR RACING PENNANTS","878.00","Mayoral Expenses","5399","Equipment - Purchase","31/05/2017"
"Wolverhampton City Council","http://opendatacommunities.org/id/metropolitan-district-council/wolverhampton","ASDA SUPERSTORE","117.12","Upper Pendeford Farm Childrens Home","5411","Provisions (Not for resale)","31/05/2017"
"Wolverhampton City Council","http://opendatacommunities.org/id/metropolitan-district-council/wolverhampton","Trainline","394.89","Strategic Director People","4112","Public Transport","31/05/2017"
"Wolverhampton City Council","http://opendatacommunities.org/id/metropolitan-district-council/wolverhampton","WOLVERHAMPTON CC","2.50","Headstart Phase 3","7523","Parking Fees","31/05/2017"
"Wolverhampton City Council","http://opendatacommunities.org/id/metropolitan-district-council/wolverhampton","WOLVERHAMPTON CC","2.50","Headstart Phase 3","7523","Parking Fees","31/05/2017"
"Wolverhampton City Council","http://opendatacommunities.org/id/metropolitan-district-council/wolverhampton","NOTEMACHINE","50.00","Court of Protection, Funerals Prot Prop","6011","Services - Supplies & Services to users","31/05/2017"
"Wolverhampton City Council","http://opendatacommunities.org/id/metropolitan-district-council/wolverhampton","LIDDELL ELECTRICAL DIS","33.88","Bilston Town Hall","5065","Equipment - Purchase","31/05/2017"
"Wolverhampton City Council","http://opendatacommunities.org/id/metropolitan-district-council/wolverhampton","TELFORD HOTEL","54.17","CIN/CP Social Work Unit - Area 7","7011","Services - Supplies & Services to users","31/05/2017"
"Wolverhampton City Council","http://opendatacommunities.org/id/metropolitan-district-council/wolverhampton","VDU01 HOTEL","116.67","CIN/CP Social Work Unit - Area 7","7011","Services - Supplies & Services to users","31/05/2017"
"Wolverhampton City Council","http://opendatacommunities.org/id/metropolitan-district-council/wolverhampton","ARGOS RETAIL GROUP","-13.49","EIP Locality 1","5310","Financial Assistance In Exceptional Circ","31/05/2017"
"Wolverhampton City Council","http://opendatacommunities.org/id/metropolitan-district-council/wolverhampton","CURRYS ONLINE","19.14","Learning Technologies","5732","Equipment - Purchase","31/05/2017"
"Wolverhampton City Council","http://opendatacommunities.org/id/metropolitan-district-council/wolverhampton","WIX.COM","93.13","Technical Support","5968","Subscriptions","31/05/2017"
"Wolverhampton City Council","http://opendatacommunities.org/id/metropolitan-district-council/wolverhampton","Amazon UK Marketplace","34.60","Global Budgets","5942","Equipment - Purchase","31/05/2017"
"Wolverhampton City Council","http://opendatacommunities.org/id/metropolitan-district-council/wolverhampton","CARPHONE WAREHOUSE","12.49","Service Director City Assets","4812","Comms - Mobile Telephones","31/05/2017"
"Wolverhampton City Council","http://opendatacommunities.org/id/metropolitan-district-council/wolverhampton","NOTEMACHINE","200.00","Childrens with Disabilities Team","6011","Financial Assistance In Exceptional Circ","31/05/2017"
"Wolverhampton City Council","http://opendatacommunities.org/id/metropolitan-district-council/wolverhampton","Trainline","180.54","LAC Education Team (LACE)","4112","Public Transport","31/05/2017"
"Wolverhampton City Council","http://opendatacommunities.org/id/metropolitan-district-council/wolverhampton","ARGOS RETAIL GROUP","99.98","Central Baths","5310","Equipment - Purchase","31/05/2017"
"Wolverhampton City Council","http://opendatacommunities.org/id/metropolitan-district-council/wolverhampton","NJP SOLICITORS LTD","358.00","CIN/CP Social Work Unit - Area 3","8111","Services - Professional Fees","31/05/2017"
"Wolverhampton City Council","http://opendatacommunities.org/id/metropolitan-district-council/wolverhampton","NJP SOLICITORS LTD","500.00","CIN/CP Social Work Unit - Area 3","8111","Services - Professional Fees","31/05/2017"
"Wolverhampton City Council","http://opendatacommunities.org/id/metropolitan-district-council/wolverhampton","NJP SOLICITORS LTD","84.80","CIN/CP Social Work Unit - Area 3","8111","Services - Professional Fees","31/05/2017"
"Wolverhampton City Council","http://opendatacommunities.org/id/metropolitan-district-council/wolverhampton","SOCIAL FRAMES","80.00","Mayoral Expenses","7221","Marketing \ Non-staff advertising","31/05/2017"
"Wolverhampton City Council","http://opendatacommunities.org/id/metropolitan-district-council/wolverhampton","Amazon UK Marketplace","12.98","SWP - Infrastructure","5942","Stationery","30/05/2017"
"Wolverhampton City Council","http://opendatacommunities.org/id/metropolitan-district-council/wolverhampton","Amazon UK Marketplace","12.08","SWP - Infrastructure","5942","Computing - Purchase of Hardware","30/05/2017"
"Wolverhampton City Council","http://opendatacommunities.org/id/metropolitan-district-council/wolverhampton","ASDA HOME SHOPPING","-2.00","Ernest Bold Court","5411","Provisions (Not for resale)","30/05/2017"
"Wolverhampton City Council","http://opendatacommunities.org/id/metropolitan-district-council/wolverhampton","ASDA HOME SHOPPING","93.91","Ernest Bold Court","5411","Provisions (Not for resale)","30/05/2017"
"Wolverhampton City Council","http://opendatacommunities.org/id/metropolitan-district-council/wolverhampton","Virgintrains.co.uk","-11.50","Members Expenses","4112","Public Transport","30/05/2017"
"Wolverhampton City Council","http://opendatacommunities.org/id/metropolitan-district-council/wolverhampton","WAYFAIR STORES LIM","184.97","CIN/CP Social Work Unit - Area 5","5965","Equipment - Purchase","29/05/2017"
"Wolverhampton City Council","http://opendatacommunities.org/id/metropolitan-district-council/wolverhampton","123 REG R/T","19.18","Art Gallery","5968","Subscriptions","29/05/2017"
"Wolverhampton City Council","http://opendatacommunities.org/id/metropolitan-district-council/wolverhampton","POST OFFICE COUNTER","29.04","CIN/CP Social Work Unit - Area 7","9402","Comms - Postage","29/05/2017"
"Wolverhampton City Council","http://opendatacommunities.org/id/metropolitan-district-council/wolverhampton","ASDA HOME SHOPPING","-1.00","Ernest Bold Court","5411","Provisions (Not for resale)","29/05/2017"
"Wolverhampton City Council","http://opendatacommunities.org/id/metropolitan-district-council/wolverhampton","ASDA HOME SHOPPING","97.79","Ernest Bold Court","5411","Provisions (Not for resale)","29/05/2017"
"Wolverhampton City Council","http://opendatacommunities.org/id/metropolitan-district-council/wolverhampton","AMZ AONOKOY INC +44 20","-18.97","Legal Services","5999","Equipment - Purchase","29/05/2017"
"Wolverhampton City Council","http://opendatacommunities.org/id/metropolitan-district-council/wolverhampton","REGISTRARS OFFICE","30.00","Head of Service - CINCP","8299","Services - Professional Fees","29/05/2017"
"Wolverhampton City Council","http://opendatacommunities.org/id/metropolitan-district-council/wolverhampton","ARGOS LTD","74.96","Fostering Team & Allowances","5310","Equipment - Purchase","29/05/2017"
"Wolverhampton City Council","http://opendatacommunities.org/id/metropolitan-district-council/wolverhampton","WWW.ARGOS.CO.UK","20.82","EIP Locality 3","5310","Contributions - Other Organisations","29/05/2017"
"Wolverhampton City Council","http://opendatacommunities.org/id/metropolitan-district-council/wolverhampton","E01577600000000","190.00","EIP Locality 3","6011","Contributions - Other Organisations","29/05/2017"
"Wolverhampton City Council","http://opendatacommunities.org/id/metropolitan-district-council/wolverhampton","PREMIER","8.88","LAC Transitions Team","5499","Client Allowances","29/05/2017"
"Wolverhampton City Council","http://opendatacommunities.org/id/metropolitan-district-council/wolverhampton","ASDA SUPERSTORE","34.03","EIP Locality 5","5411","Grant Payments","29/05/2017"
"Wolverhampton City Council","http://opendatacommunities.org/id/metropolitan-district-council/wolverhampton","RICHARD LAMMING RE","12.00","Mayoral Expenses","5950","Equipment - R & M","29/05/2017"
"Wolverhampton City Council","http://opendatacommunities.org/id/metropolitan-district-council/wolverhampton","UXPIN.COM","78.78","City Direct","7372","Computing - Purchase of Software","29/05/2017"
"Wolverhampton City Council","http://opendatacommunities.org/id/metropolitan-district-council/wolverhampton","Amazon EU","17.62","Public Health Support Costs","5969","Equipment - Purchase","29/05/2017"
"Wolverhampton City Council","http://opendatacommunities.org/id/metropolitan-district-council/wolverhampton","PIKTOCHART","32.13","Public Health Support Costs","5045","Computing - Purchase of Hardware","29/05/2017"
"Wolverhampton City Council","http://opendatacommunities.org/id/metropolitan-district-council/wolverhampton","AMAZON.CO.UK","8.99","Public Health Support Costs","5999","Equipment - Purchase","29/05/2017"
"Wolverhampton City Council","http://opendatacommunities.org/id/metropolitan-district-council/wolverhampton","WALSALL COUNCIL","-12.00","Adoption and Residence Team & Allowances","9399","Services - Fees and Charges","29/05/2017"
"Wolverhampton City Council","http://opendatacommunities.org/id/metropolitan-district-council/wolverhampton","Virgin Trains","75.00","Adoption and Residence Team & Allowances","4112","Public Transport","29/05/2017"
"Wolverhampton City Council","http://opendatacommunities.org/id/metropolitan-district-council/wolverhampton","Virgin Trains","223.00","Adoption and Residence Team & Allowances","4112","Public Transport","29/05/2017"
"Wolverhampton City Council","http://opendatacommunities.org/id/metropolitan-district-council/wolverhampton","WWW.REED.CO.UK","175.00","Strategic ICTS (ICT Serv Budget)","7361","Staff Advertising Costs","29/05/2017"
"Wolverhampton City Council","http://opendatacommunities.org/id/metropolitan-district-council/wolverhampton","ITUNES.COM/BILL","0.79","Strategic ICTS (ICT Serv Budget)","5735","Computing - Purchase of Software","29/05/2017"
"Wolverhampton City Council","http://opendatacommunities.org/id/metropolitan-district-council/wolverhampton","FACEBK BZZJ5D2BR2","499.86","Communications & Marketing - General","7311","Marketing \ Non-staff advertising","29/05/2017"
"Wolverhampton City Council","http://opendatacommunities.org/id/metropolitan-district-council/wolverhampton","E01510300000000","40.00","Emergency Duty Team","6011","Financial Assistance In Exceptional Circ","29/05/2017"
"Wolverhampton City Council","http://opendatacommunities.org/id/metropolitan-district-council/wolverhampton","HILTON","305.15","Strategic Director People","3504","Conference Expenses","29/05/2017"
"Wolverhampton City Council","http://opendatacommunities.org/id/metropolitan-district-council/wolverhampton","HILTON","305.15","Strategic Director People","3504","Conference Expenses","29/05/2017"
"Wolverhampton City Council","http://opendatacommunities.org/id/metropolitan-district-council/wolverhampton","HILTON","305.15","Strategic Director People","3504","Conference Expenses","29/05/2017"
"Wolverhampton City Council","http://opendatacommunities.org/id/metropolitan-district-council/wolverhampton","HILTON","305.15","Strategic Director People","3504","Conference Expenses","29/05/2017"
"Wolverhampton City Council","http://opendatacommunities.org/id/metropolitan-district-council/wolverhampton","HILTON","305.15","Strategic Director People","3504","Conference Expenses","29/05/2017"
"Wolverhampton City Council","http://opendatacommunities.org/id/metropolitan-district-council/wolverhampton","HILTON","305.15","Strategic Director People","3504","Conference Expenses","29/05/2017"
"Wolverhampton City Council","http://opendatacommunities.org/id/metropolitan-district-council/wolverhampton","WWW.ARGOS.CO.UK","236.62","LAC Transitions Team","5310","Client Allowances","29/05/2017"
"Wolverhampton City Council","http://opendatacommunities.org/id/metropolitan-district-council/wolverhampton","B&M RETAIL","11.11","Headstart Phase 3","5310","Stationery","29/05/2017"
"Wolverhampton City Council","http://opendatacommunities.org/id/metropolitan-district-council/wolverhampton","PREMIER INN","4.17","Headstart Phase 3","3811","Parking Fees","29/05/2017"
"Wolverhampton City Council","http://opendatacommunities.org/id/metropolitan-district-council/wolverhampton","WWW.COFFEESUPPLIESDIRE","11.20","Archives","5331","Materials for resale","29/05/2017"
"Wolverhampton City Council","http://opendatacommunities.org/id/metropolitan-district-council/wolverhampton","AMAZON.CO.UK","10.62","Safeguarding Board - Adults","5999","Equipment - Purchase","29/05/2017"
"Wolverhampton City Council","http://opendatacommunities.org/id/metropolitan-district-council/wolverhampton","B & Q 1243","80.00","CIN/CP Social Work Unit - Area 2","5211","Materials","29/05/2017"
"Wolverhampton City Council","http://opendatacommunities.org/id/metropolitan-district-council/wolverhampton","Trainline","60.03","CIN/CP Social Work Unit - Area 2","4112","Public Transport","29/05/2017"
"Wolverhampton City Council","http://opendatacommunities.org/id/metropolitan-district-council/wolverhampton","BOOTS - 6564","6.00","Transportation General","5912","Toilet Requisites","29/05/2017"
"Wolverhampton City Council","http://opendatacommunities.org/id/metropolitan-district-council/wolverhampton","E01510300000000","60.00","MASH","6011","Public Transport","29/05/2017"
"Wolverhampton City Council","http://opendatacommunities.org/id/metropolitan-district-council/wolverhampton","ROYAL CARPETS","333.33","EIP Locality 3","5713","Financial Assistance In Exceptional Circ","29/05/2017"
"Wolverhampton City Council","http://opendatacommunities.org/id/metropolitan-district-council/wolverhampton","WWW.ALZPRODUCTS.CO.UK","24.96","CIN/CP Social Work Unit - Area 6","5976","Equipment - Purchase","29/05/2017"
"Wolverhampton City Council","http://opendatacommunities.org/id/metropolitan-district-council/wolverhampton","ARGOS RETAIL GROUP","21.99","The Maltings","5310","Equipment - Purchase","26/05/2017"
"Wolverhampton City Council","http://opendatacommunities.org/id/metropolitan-district-council/wolverhampton","1ENV SOLUTIONS","109.20","Cafe","5995","Equipment - Purchase","26/05/2017"
"Wolverhampton City Council","http://opendatacommunities.org/id/metropolitan-district-council/wolverhampton","FACULTY OF PUBLIC HEAL","275.00","Transformation","8220","Training Expenses","26/05/2017"
"Wolverhampton City Council","http://opendatacommunities.org/id/metropolitan-district-council/wolverhampton","Virgin Trains","132.50","Adoption and Residence Team & Allowances","4112","Public Transport","26/05/2017"
"Wolverhampton City Council","http://opendatacommunities.org/id/metropolitan-district-council/wolverhampton","Trainline","19.23","SEN Special Education Admin","4112","Public Transport","26/05/2017"
"Wolverhampton City Council","http://opendatacommunities.org/id/metropolitan-district-council/wolverhampton","Trainline","8.52","SEN Special Education Admin","4112","Public Transport","26/05/2017"
"Wolverhampton City Council","http://opendatacommunities.org/id/metropolitan-district-council/wolverhampton","Virgin Trains","191.70","Environmental Health - Pub Prot - Gen","4112","Services - Fees and Charges","26/05/2017"
"Wolverhampton City Council","http://opendatacommunities.org/id/metropolitan-district-council/wolverhampton","AMAZON.CO.UK","18.97","Legal Services","5999","Equipment - Purchase","26/05/2017"
"Wolverhampton City Council","http://opendatacommunities.org/id/metropolitan-district-council/wolverhampton","ALDI","3.32","Children & Family Contact Services","5411","Provisions (Not for resale)","26/05/2017"
"Wolverhampton City Council","http://opendatacommunities.org/id/metropolitan-district-council/wolverhampton","E01577600000000","140.00","EIP Locality 3","6011","Financial Assistance In Exceptional Circ","26/05/2017"
"Wolverhampton City Council","http://opendatacommunities.org/id/metropolitan-district-council/wolverhampton","WWW.ARGOS.CO.UK","147.45","EIP Locality 3","5310","Contributions - Other Organisations","26/05/2017"
"Wolverhampton City Council","http://opendatacommunities.org/id/metropolitan-district-council/wolverhampton","Amazon UK Marketplace","6.30","EIP Locality 3","5942","Financial Assistance In Exceptional Circ","26/05/2017"
"Wolverhampton City Council","http://opendatacommunities.org/id/metropolitan-district-council/wolverhampton","Virgin Trains","127.00","Adoption and Residence Team & Allowances","4112","Public Transport","26/05/2017"
"Wolverhampton City Council","http://opendatacommunities.org/id/metropolitan-district-council/wolverhampton","STARNET.COM ORDER #242","146.12","Strategic ICTS (ICT Serv Budget)","5734","Computing - Purchase of Software","26/05/2017"
"Wolverhampton City Council","http://opendatacommunities.org/id/metropolitan-district-council/wolverhampton","ASDA HOME SHOPPING","2.50","Upper Pendeford Farm Childrens Home","5411","Provisions (Not for resale)","26/05/2017"
"Wolverhampton City Council","http://opendatacommunities.org/id/metropolitan-district-council/wolverhampton","Amazon UK Marketplace","73.75","EIP Locality 5","5942","Equipment - Purchase","26/05/2017"
"Wolverhampton City Council","http://opendatacommunities.org/id/metropolitan-district-council/wolverhampton","Amazon UK Marketplace","37.50","Electoral Registration","5942","Books","26/05/2017"
"Wolverhampton City Council","http://opendatacommunities.org/id/metropolitan-district-council/wolverhampton","Trainline","70.28","Research & Development","4112","Public Transport","26/05/2017"
"Wolverhampton City Council","http://opendatacommunities.org/id/metropolitan-district-council/wolverhampton","AMAZON UK RETAIL AMAZO","45.50","Headstart Phase 3","5999","Books","26/05/2017"
"Wolverhampton City Council","http://opendatacommunities.org/id/metropolitan-district-council/wolverhampton","OXFORD STARBUCKS","16.17","Headstart Phase 3","5499","Subsistence","26/05/2017"
"Wolverhampton City Council","http://opendatacommunities.org/id/metropolitan-district-council/wolverhampton","Amazon Prime","-7.99","Wolverhampton Indoor and Open Market","5968","Subscriptions","26/05/2017"
"Wolverhampton City Council","http://opendatacommunities.org/id/metropolitan-district-council/wolverhampton","YOUNG`S SHOE REPAIRS L","46.55","Wolverhampton Indoor and Open Market","7251","Fixtures and Fittings - R&M","26/05/2017"
"Wolverhampton City Council","http://opendatacommunities.org/id/metropolitan-district-council/wolverhampton","E00017100000000","100.00","Hostels / Outreach","6011","Financial Assistance In Exceptional Circ","26/05/2017"
"Wolverhampton City Council","http://opendatacommunities.org/id/metropolitan-district-council/wolverhampton","POST OFFICE COUNTER","10.74","Duke Street Bungalows","9402","Comms - Postage","26/05/2017"
"Wolverhampton City Council","http://opendatacommunities.org/id/metropolitan-district-council/wolverhampton","SAINSBURYS 2040","9.08","LAC Transitions Team","5411","Client Allowances","25/05/2017"
"Wolverhampton City Council","http://opendatacommunities.org/id/metropolitan-district-council/wolverhampton","Virgin Trains","19.00","Strategic Asset Management - General","4112","Public Transport","25/05/2017"
"Wolverhampton City Council","http://opendatacommunities.org/id/metropolitan-district-council/wolverhampton","CUMMINGS BROTHERS LOCK","60.00","Transportation General","7399","Equipment - Purchase","25/05/2017"
"Wolverhampton City Council","http://opendatacommunities.org/id/metropolitan-district-council/wolverhampton","Virgin Trains","131.35","Transportation General","4112","Public Transport","25/05/2017"
"Wolverhampton City Council","http://opendatacommunities.org/id/metropolitan-district-council/wolverhampton","REGISTRARS OFFICE","11.00","Childrens with Disabilities Team","8299","Section 17","25/05/2017"
"Wolverhampton City Council","http://opendatacommunities.org/id/metropolitan-district-council/wolverhampton","REGISTRARS OFFICE","11.00","Adoption and Residence Team & Allowances","8299","Services - Fees and Charges","25/05/2017"
"Wolverhampton City Council","http://opendatacommunities.org/id/metropolitan-district-council/wolverhampton","WALSALL COUNCIL","12.00","Adoption and Residence Team & Allowances","9399","Services - Fees and Charges","25/05/2017"
"Wolverhampton City Council","http://opendatacommunities.org/id/metropolitan-district-council/wolverhampton","AMAZON UK RETAIL AMAZO","183.27","Strategic ICTS (ICT Serv Budget)","5999","Equipment - Purchase","25/05/2017"
"Wolverhampton City Council","http://opendatacommunities.org/id/metropolitan-district-council/wolverhampton","ASDA SUPERSTORE","100.00","CIN/CP Social Work Unit - Area 3","5411","Provisions (Not for resale)","25/05/2017"
"Wolverhampton City Council","http://opendatacommunities.org/id/metropolitan-district-council/wolverhampton","ASDA SUPERSTORE","175.00","CIN/CP Social Work Unit - Area 3","5411","Provisions (Not for resale)","25/05/2017"
"Wolverhampton City Council","http://opendatacommunities.org/id/metropolitan-district-council/wolverhampton","WWW.LABELPLANET.CO.UK","112.50","Electoral Registration","5943","Stationery","25/05/2017"
"Wolverhampton City Council","http://opendatacommunities.org/id/metropolitan-district-council/wolverhampton","ROYAL CARPETS","333.33","LAC Transitions Team","5713","Client Allowances","25/05/2017"
"Wolverhampton City Council","http://opendatacommunities.org/id/metropolitan-district-council/wolverhampton","ROYAL CARPETS","320.83","LAC Transitions Team","5713","Client Allowances","25/05/2017"
"Wolverhampton City Council","http://opendatacommunities.org/id/metropolitan-district-council/wolverhampton","WM MORRISONS","15.61","Assessment Team (West)","5411","Provisions (Not for resale)","25/05/2017"
"Wolverhampton City Council","http://opendatacommunities.org/id/metropolitan-district-council/wolverhampton","TEX MEADOWVALEGAR","92.47","Towers Outdoor Education Centre","5541","Petrol","25/05/2017"
"Wolverhampton City Council","http://opendatacommunities.org/id/metropolitan-district-council/wolverhampton","Amazon UK Marketplace","13.99","Towers Outdoor Education Centre","5942","Books","25/05/2017"
"Wolverhampton City Council","http://opendatacommunities.org/id/metropolitan-district-council/wolverhampton","POST OFFICE COUNTER","251.00","Education Catering - General Overheads","9402","Comms - Postage","25/05/2017"
"Wolverhampton City Council","http://opendatacommunities.org/id/metropolitan-district-council/wolverhampton","PAYPAL  THEROTA","520.47","Civic Halls Non Direct Management A/C","5735","Computing - Purchase of Software","25/05/2017"
"Wolverhampton City Council","http://opendatacommunities.org/id/metropolitan-district-council/wolverhampton","WWW.ARGOS.CO.UK","78.28","CIN/CP Social Work Unit - Area 4","5310","Equipment - Purchase","25/05/2017"
"Wolverhampton City Council","http://opendatacommunities.org/id/metropolitan-district-council/wolverhampton","Amazon UK Marketplace","86.63","Statutory Services (10RM)","5942","Equipment - Purchase","25/05/2017"
"Wolverhampton City Council","http://opendatacommunities.org/id/metropolitan-district-council/wolverhampton","Trainline","189.16","Legal Services","4112","Public Transport","25/05/2017"
"Wolverhampton City Council","http://opendatacommunities.org/id/metropolitan-district-council/wolverhampton","Amazon UK Marketplace","4.35","EIP Locality 3","5942","Financial Assistance In Exceptional Circ","25/05/2017"
"Wolverhampton City Council","http://opendatacommunities.org/id/metropolitan-district-council/wolverhampton","Amazon UK Marketplace","1.74","EIP Locality 3","5942","Financial Assistance In Exceptional Circ","25/05/2017"
"Wolverhampton City Council","http://opendatacommunities.org/id/metropolitan-district-council/wolverhampton","Amazon UK Marketplace","1.97","EIP Locality 3","5942","Financial Assistance In Exceptional Circ","25/05/2017"
"Wolverhampton City Council","http://opendatacommunities.org/id/metropolitan-district-council/wolverhampton","ALDI","36.92","LAC Transitions Team","5411","Client Allowances","25/05/2017"
"Wolverhampton City Council","http://opendatacommunities.org/id/metropolitan-district-council/wolverhampton","ARGOS RETAIL GROUP","13.49","EIP Locality 2","5310","Financial Assistance In Exceptional Circ","24/05/2017"
"Wolverhampton City Council","http://opendatacommunities.org/id/metropolitan-district-council/wolverhampton","TESCO STORES 5194","383.45","Towers Outdoor Education Centre","5411","Provisions (Not for resale)","24/05/2017"
"Wolverhampton City Council","http://opendatacommunities.org/id/metropolitan-district-council/wolverhampton","Amazon UK Marketplace","13.80","Parks - East Area Management","5942","Equipment - Purchase","24/05/2017"
"Wolverhampton City Council","http://opendatacommunities.org/id/metropolitan-district-council/wolverhampton","HOLIDAY INN EXPRES","79.20","Adoption and Residence Team & Allowances","7011","Accommodation Costs","24/05/2017"
"Wolverhampton City Council","http://opendatacommunities.org/id/metropolitan-district-council/wolverhampton","PREMIER INN","94.15","Adoption and Residence Team & Allowances","3811","Accommodation Costs","24/05/2017"
"Wolverhampton City Council","http://opendatacommunities.org/id/metropolitan-district-council/wolverhampton","Trainline","64.36","CIN/CP Social Work Unit - Area 6","4112","Public Transport","24/05/2017"
"Wolverhampton City Council","http://opendatacommunities.org/id/metropolitan-district-council/wolverhampton","HIGHFIELD HOUSE HO","385.00","CIN/CP Social Work Unit - Area 3","7011","No Recourse to Public Funds","24/05/2017"
"Wolverhampton City Council","http://opendatacommunities.org/id/metropolitan-district-council/wolverhampton","AMAZON.CO.UK","8.99","Global Budgets","5999","Books","24/05/2017"
"Wolverhampton City Council","http://opendatacommunities.org/id/metropolitan-district-council/wolverhampton","AMAZON UK RETAIL AMAZO","24.15","Global Budgets","5999","Books","24/05/2017"
"Wolverhampton City Council","http://opendatacommunities.org/id/metropolitan-district-council/wolverhampton","Amazon UK Marketplace","17.59","Global Budgets","5942","Books","24/05/2017"
"Wolverhampton City Council","http://opendatacommunities.org/id/metropolitan-district-council/wolverhampton","MAYFAIR CARPETS","90.83","LAC Transitions Team","5712","Client Allowances","24/05/2017"
"Wolverhampton City Council","http://opendatacommunities.org/id/metropolitan-district-council/wolverhampton","Trainline","137.19","CIN/CP Social Work Unit - Area 4","4112","Client Transport","24/05/2017"
"Wolverhampton City Council","http://opendatacommunities.org/id/metropolitan-district-council/wolverhampton","ARGOS RETAIL GROUP","44.99","CIN/CP Social Work Unit - Area 7","5310","Equipment - Purchase","24/05/2017"
"Wolverhampton City Council","http://opendatacommunities.org/id/metropolitan-district-council/wolverhampton","MAX SPIELMANN LTD","6.66","Mayoral Expenses","7221","Printing","24/05/2017"
"Wolverhampton City Council","http://opendatacommunities.org/id/metropolitan-district-council/wolverhampton","Amazon UK Marketplace","3.75","EIP Locality 3","5942","Financial Assistance In Exceptional Circ","24/05/2017"
"Wolverhampton City Council","http://opendatacommunities.org/id/metropolitan-district-council/wolverhampton","Amazon UK Marketplace","3.42","EIP Locality 3","5942","Financial Assistance In Exceptional Circ","24/05/2017"
"Wolverhampton City Council","http://opendatacommunities.org/id/metropolitan-district-council/wolverhampton","Amazon UK Marketplace","1.34","EIP Locality 3","5942","Financial Assistance In Exceptional Circ","24/05/2017"
"Wolverhampton City Council","http://opendatacommunities.org/id/metropolitan-district-council/wolverhampton","TFL ROAD CHARGE","11.50","Mayoral Expenses","4784","Car Allowances","24/05/2017"
"Wolverhampton City Council","http://opendatacommunities.org/id/metropolitan-district-council/wolverhampton","Amazon UK Marketplace","88.58","EIP Locality 8","5942","Grant Payments","24/05/2017"
"Wolverhampton City Council","http://opendatacommunities.org/id/metropolitan-district-council/wolverhampton","Amazon UK Marketplace","83.98","EIP Locality 8","5942","Grant Payments","24/05/2017"
"Wolverhampton City Council","http://opendatacommunities.org/id/metropolitan-district-council/wolverhampton","UNTOUCHABLES","12.08","Cemeteries","5231","Materials","24/05/2017"
"Wolverhampton City Council","http://opendatacommunities.org/id/metropolitan-district-council/wolverhampton","LOVE2SHOP.CO.UK","216.45","Public Health Commissioning","8641","Educ Trips, Holidays, Outings, Activity","24/05/2017"
"Wolverhampton City Council","http://opendatacommunities.org/id/metropolitan-district-council/wolverhampton","SMYTHS TOYS","19.99","CIN/CP Social Work Unit - Area 3","5945","Equipment - Purchase","24/05/2017"
"Wolverhampton City Council","http://opendatacommunities.org/id/metropolitan-district-council/wolverhampton","WWW.COVENTRY.GOV.UK","1259.28","Communications & Marketing - General","7999","Marketing \ Non-staff advertising","24/05/2017"
"Wolverhampton City Council","http://opendatacommunities.org/id/metropolitan-district-council/wolverhampton","MARRIOTT","98.00","LAC Team","3509","Services - Supplies & Services to users","24/05/2017"
"Wolverhampton City Council","http://opendatacommunities.org/id/metropolitan-district-council/wolverhampton","W M MORRISONS.COM","143.78","Discretionary Fund","5411","Materials","24/05/2017"
"Wolverhampton City Council","http://opendatacommunities.org/id/metropolitan-district-council/wolverhampton","PAYPAL  FIVEAREASPA","75.00","Public Health Support Costs","5942","Books","24/05/2017"
"Wolverhampton City Council","http://opendatacommunities.org/id/metropolitan-district-council/wolverhampton","WWW.ARGOS.CO.UK","126.94","EIP Locality 5","5310","Furniture","24/05/2017"
"Wolverhampton City Council","http://opendatacommunities.org/id/metropolitan-district-council/wolverhampton","WEST COAST TRAINS","15.00","Curatorial - Cultural Learning","4112","Public Transport","24/05/2017"
"Wolverhampton City Council","http://opendatacommunities.org/id/metropolitan-district-council/wolverhampton","AMAZON UK RETAIL AMAZO","77.44","Headstart Phase 3","5999","Books","24/05/2017"
"Wolverhampton City Council","http://opendatacommunities.org/id/metropolitan-district-council/wolverhampton","WOLVERHAMPTON CC","2.50","Headstart Phase 3","7523","Parking Fees","24/05/2017"
"Wolverhampton City Council","http://opendatacommunities.org/id/metropolitan-district-council/wolverhampton","WWW.WMCA.CO.UK","54.50","EIP Locality 1","9399","Services - Fees and Charges","24/05/2017"
"Wolverhampton City Council","http://opendatacommunities.org/id/metropolitan-district-council/wolverhampton","MIDLAND DOMESTIC","194.00","EIP Locality 1","5722","Equipment - Purchase","24/05/2017"
"Wolverhampton City Council","http://opendatacommunities.org/id/metropolitan-district-council/wolverhampton","CARVER/WOLVERHAMPTON/L","47.31","Bilston Town Hall","5211","Equipment - Purchase","24/05/2017"
"Wolverhampton City Council","http://opendatacommunities.org/id/metropolitan-district-council/wolverhampton","CARVER/WOLVERHAMPTON/L","32.16","Bilston Town Hall","5211","Equipment - Purchase","24/05/2017"
"Wolverhampton City Council","http://opendatacommunities.org/id/metropolitan-district-council/wolverhampton","THE POST OFFICE","65.00","Intensive Family Support Team","9402","Comms - Postage","23/05/2017"
"Wolverhampton City Council","http://opendatacommunities.org/id/metropolitan-district-council/wolverhampton","WP-GATEHOUSE MEDIA","550.00","Language Studies Delivery Area","5942","Books","23/05/2017"
"Wolverhampton City Council","http://opendatacommunities.org/id/metropolitan-district-council/wolverhampton","HUGHES","413.02","LAC Transitions Team","5732","Client Allowances","23/05/2017"
"Wolverhampton City Council","http://opendatacommunities.org/id/metropolitan-district-council/wolverhampton","HUGHES","271.79","LAC Transitions Team","5732","Client Allowances","23/05/2017"
"Wolverhampton City Council","http://opendatacommunities.org/id/metropolitan-district-council/wolverhampton","Amazon EU","71.15","Archives","5969","Equipment - Purchase","23/05/2017"
"Wolverhampton City Council","http://opendatacommunities.org/id/metropolitan-district-council/wolverhampton","B & Q 1243","6.67","Caretakers Community Centre","5211","R&M - Departmental planned (external)","23/05/2017"
"Wolverhampton City Council","http://opendatacommunities.org/id/metropolitan-district-council/wolverhampton","BRITANNIA","172.00","CIN/CP Social Work Unit - Area 2","7011","Services - Supplies & Services to users","23/05/2017"
"Wolverhampton City Council","http://opendatacommunities.org/id/metropolitan-district-council/wolverhampton","PO WILLENHALL RD 5497","40.00","EIP Locality 1","6011","Subsistence","23/05/2017"
"Wolverhampton City Council","http://opendatacommunities.org/id/metropolitan-district-council/wolverhampton","Hotel on Booking.com","49.00","MASH","7011","No Recourse to Public Funds","23/05/2017"
"Wolverhampton City Council","http://opendatacommunities.org/id/metropolitan-district-council/wolverhampton","AMAZON UK PRIME AMZN.C","7.99","Technical Support","5968","Subscriptions","23/05/2017"
"Wolverhampton City Council","http://opendatacommunities.org/id/metropolitan-district-council/wolverhampton","Amazon UK Marketplace","38.99","Technical Support","5942","Computing - Purchase of Hardware","23/05/2017"
"Wolverhampton City Council","http://opendatacommunities.org/id/metropolitan-district-council/wolverhampton","Amazon UK Marketplace","59.99","Technical Support","5942","Computing - Purchase of Hardware","23/05/2017"
"Wolverhampton City Council","http://opendatacommunities.org/id/metropolitan-district-council/wolverhampton","ASDA HOME SHOPPING","-6.77","Ernest Bold Court","5411","Provisions (Not for resale)","23/05/2017"
"Wolverhampton City Council","http://opendatacommunities.org/id/metropolitan-district-council/wolverhampton","ASDA HOME SHOPPING","-0.20","Ernest Bold Court","5411","Provisions (Not for resale)","23/05/2017"
"Wolverhampton City Council","http://opendatacommunities.org/id/metropolitan-district-council/wolverhampton","ASDA HOME SHOPPING","94.21","Ernest Bold Court","5411","Provisions (Not for resale)","23/05/2017"
"Wolverhampton City Council","http://opendatacommunities.org/id/metropolitan-district-council/wolverhampton","WWW.AAWRISTBANDS.CO.UK","152.49","Brick Wonders/Lego","5699","Equipment - Purchase","23/05/2017"
"Wolverhampton City Council","http://opendatacommunities.org/id/metropolitan-district-council/wolverhampton","ARGOS LTD","9.59","Shopmobility","5310","Equipment - Purchase","23/05/2017"
"Wolverhampton City Council","http://opendatacommunities.org/id/metropolitan-district-council/wolverhampton","CONWY COUNTY BOROU","463.72","Statutory Services (10RM)","9399","Services - Fees and Charges","23/05/2017"
"Wolverhampton City Council","http://opendatacommunities.org/id/metropolitan-district-council/wolverhampton","REGISTRARS OFFICE","30.00","Head of Service - CINCP","8299","Services - Professional Fees","23/05/2017"
"Wolverhampton City Council","http://opendatacommunities.org/id/metropolitan-district-council/wolverhampton","REGISTRARS OFFICE","27.00","Head of Service - CINCP","8299","Services - Professional Fees","23/05/2017"
"Wolverhampton City Council","http://opendatacommunities.org/id/metropolitan-district-council/wolverhampton","Trainline","81.14","Legal Services","4112","Public Transport","23/05/2017"
"Wolverhampton City Council","http://opendatacommunities.org/id/metropolitan-district-council/wolverhampton","G & M HALE (SUNDRIES)","7.20","Creative Studies Delivery Area","5992","Materials for resale","23/05/2017"
"Wolverhampton City Council","http://opendatacommunities.org/id/metropolitan-district-council/wolverhampton","G & M HALE (SUNDRIES)","14.80","Discretionary Fund","5992","Materials","23/05/2017"
"Wolverhampton City Council","http://opendatacommunities.org/id/metropolitan-district-council/wolverhampton","G & M HALE LTD","58.00","Discretionary Fund","5992","Materials","23/05/2017"
"Wolverhampton City Council","http://opendatacommunities.org/id/metropolitan-district-council/wolverhampton","G & M HALE LTD","68.20","Creative Studies Delivery Area","5992","Materials for resale","23/05/2017"
"Wolverhampton City Council","http://opendatacommunities.org/id/metropolitan-district-council/wolverhampton","G & M HALE LTD","166.60","Discretionary Fund","5992","Materials","23/05/2017"
"Wolverhampton City Council","http://opendatacommunities.org/id/metropolitan-district-council/wolverhampton","KEEP ABLE","30.54","Mayoral Expenses","5975","Equipment - Purchase","23/05/2017"
"Wolverhampton City Council","http://opendatacommunities.org/id/metropolitan-district-council/wolverhampton","PP 2STROKE","50.00","Street Lighting Maintenance","8999","Services - Professional Fees","23/05/2017"
"Wolverhampton City Council","http://opendatacommunities.org/id/metropolitan-district-council/wolverhampton","Trainline","113.02","Adoption and Residence Team & Allowances","4112","Public Transport","23/05/2017"
"Wolverhampton City Council","http://opendatacommunities.org/id/metropolitan-district-council/wolverhampton","ARGOS RETAIL GROUP","46.96","Delivery & OCE Development","5310","Equipment - Purchase","23/05/2017"
"Wolverhampton City Council","http://opendatacommunities.org/id/metropolitan-district-council/wolverhampton","PAYPAL  DURESTBEDSL","139.99","Delivery & OCE Development","5719","Equipment - Purchase","23/05/2017"
"Wolverhampton City Council","http://opendatacommunities.org/id/metropolitan-district-council/wolverhampton","WWW.LAMPSHOPONLINE.CO.","120.60","Maintenance of Exhibits","5072","Equipment - Purchase","23/05/2017"
"Wolverhampton City Council","http://opendatacommunities.org/id/metropolitan-district-council/wolverhampton","GO OUTDOORS","93.77","Mayoral Expenses","5941","Equipment - Purchase","23/05/2017"
"Wolverhampton City Council","http://opendatacommunities.org/id/metropolitan-district-council/wolverhampton","WAITROSE 696","12.89","Mayoral Expenses","5411","Hospitality","23/05/2017"
"Wolverhampton City Council","http://opendatacommunities.org/id/metropolitan-district-council/wolverhampton","DIRECT FLOORING","397.50","LAC Transitions Team","5713","Client Allowances","23/05/2017"
"Wolverhampton City Council","http://opendatacommunities.org/id/metropolitan-district-council/wolverhampton","DIRECT FLOORING","397.50","LAC Transitions Team","5713","Client Allowances","23/05/2017"
"Wolverhampton City Council","http://opendatacommunities.org/id/metropolitan-district-council/wolverhampton","HOME BARGAINS","12.47","LAC Transitions Team","5251","Client Allowances","23/05/2017"
"Wolverhampton City Council","http://opendatacommunities.org/id/metropolitan-district-council/wolverhampton","ARGOS LTD","93.94","LAC Transitions Team","5310","Client Allowances","23/05/2017"
"Wolverhampton City Council","http://opendatacommunities.org/id/metropolitan-district-council/wolverhampton","ARGOS LTD","221.25","LAC Transitions Team","5310","Client Allowances","23/05/2017"
"Wolverhampton City Council","http://opendatacommunities.org/id/metropolitan-district-council/wolverhampton","ARGOS LTD","199.99","LAC Transitions Team","5310","Client Allowances","23/05/2017"
"Wolverhampton City Council","http://opendatacommunities.org/id/metropolitan-district-council/wolverhampton","ARGOS LTD","199.99","LAC Transitions Team","5310","Client Allowances","23/05/2017"
"Wolverhampton City Council","http://opendatacommunities.org/id/metropolitan-district-council/wolverhampton","SHELL & WAITROSE","4.17","Mayoral Expenses","5541","Vehicle Maintenance - Repairs","23/05/2017"
"Wolverhampton City Council","http://opendatacommunities.org/id/metropolitan-district-council/wolverhampton","WAITROSE 696","5.60","Mayoral Expenses","5411","Subsistence","23/05/2017"
"Wolverhampton City Council","http://opendatacommunities.org/id/metropolitan-district-council/wolverhampton","WAITROSE 696","3.10","Mayoral Expenses","5411","Subsistence","23/05/2017"
"Wolverhampton City Council","http://opendatacommunities.org/id/metropolitan-district-council/wolverhampton","ARGOS LTD","219.99","LAC Transitions Team","5310","Client Allowances","23/05/2017"
"Wolverhampton City Council","http://opendatacommunities.org/id/metropolitan-district-council/wolverhampton","ASDA HOME SHOPPING","60.77","EIP Locality 4","5411","Provisions (Not for resale)","23/05/2017"
"Wolverhampton City Council","http://opendatacommunities.org/id/metropolitan-district-council/wolverhampton","FysioSuppliesBVNL","254.16","Central Baths","5047","Equipment - Purchase","23/05/2017"
"Wolverhampton City Council","http://opendatacommunities.org/id/metropolitan-district-council/wolverhampton","Amazon UK Marketplace","180.65","Central Baths","5942","Equipment - Purchase","23/05/2017"
"Wolverhampton City Council","http://opendatacommunities.org/id/metropolitan-district-council/wolverhampton","BRTMKT DBA FastSpring","186.89","Communications & Marketing - General","5818","Computing - Purchase of Software","23/05/2017"
"Wolverhampton City Council","http://opendatacommunities.org/id/metropolitan-district-council/wolverhampton","ASDA SUPERSTORE","11.35","Mayoral Expenses","5411","Hospitality","22/05/2017"
"Wolverhampton City Council","http://opendatacommunities.org/id/metropolitan-district-council/wolverhampton","E01353600000000","120.00","Childrens with Disabilities Team","6011","No Recourse to Public Funds","22/05/2017"
"Wolverhampton City Council","http://opendatacommunities.org/id/metropolitan-district-council/wolverhampton","E01353600000000","240.00","Childrens with Disabilities Team","6011","No Recourse to Public Funds","22/05/2017"
"Wolverhampton City Council","http://opendatacommunities.org/id/metropolitan-district-council/wolverhampton","LOYD WEDNESFIELD WOLVE","200.00","EIP Locality 8","6011","Grant Payments","22/05/2017"
"Wolverhampton City Council","http://opendatacommunities.org/id/metropolitan-district-council/wolverhampton","Amazon EU","81.65","City Direct","5969","Equipment - Purchase","22/05/2017"
"Wolverhampton City Council","http://opendatacommunities.org/id/metropolitan-district-council/wolverhampton","MERCURE ST PAUL'S HOTE","121.00","SWP - Infrastructure","7011","Accommodation Costs","22/05/2017"
"Wolverhampton City Council","http://opendatacommunities.org/id/metropolitan-district-council/wolverhampton","RIDDLE.COM","8.59","Healthy Lifestyles","5734","Computing - Purchase of Software","22/05/2017"
"Wolverhampton City Council","http://opendatacommunities.org/id/metropolitan-district-council/wolverhampton","MAPLIN WOLVERHAMPT WV2","23.97","Strategic ICTS (ICT Serv Budget)","4812","Computing - Consumables","22/05/2017"
"Wolverhampton City Council","http://opendatacommunities.org/id/metropolitan-district-council/wolverhampton","WWW.JUSTGLOVES.CO.UK","29.45","Central Baths","5999","Cleaning Supplies and Materials","22/05/2017"
"Wolverhampton City Council","http://opendatacommunities.org/id/metropolitan-district-council/wolverhampton","ASDA HOME SHOPPING","-2.00","Upper Pendeford Farm Childrens Home","5411","Provisions (Not for resale)","22/05/2017"
"Wolverhampton City Council","http://opendatacommunities.org/id/metropolitan-district-council/wolverhampton","ASDA HOME SHOPPING","269.45","Upper Pendeford Farm Childrens Home","5411","Provisions (Not for resale)","22/05/2017"
"Wolverhampton City Council","http://opendatacommunities.org/id/metropolitan-district-council/wolverhampton","Amazon UK Marketplace","16.73","Global Budgets","5942","Books","22/05/2017"
"Wolverhampton City Council","http://opendatacommunities.org/id/metropolitan-district-council/wolverhampton","ARGOS RETAIL GROUP","199.00","LAC Team","5310","Financial Assistance In Exceptional Circ","22/05/2017"
"Wolverhampton City Council","http://opendatacommunities.org/id/metropolitan-district-council/wolverhampton","ASDA HOME SHOPPING","95.15","Ernest Bold Court","5411","Provisions (Not for resale)","22/05/2017"
"Wolverhampton City Council","http://opendatacommunities.org/id/metropolitan-district-council/wolverhampton","Trainline","77.21","Head of Service - LAC","4112","Public Transport","22/05/2017"
"Wolverhampton City Council","http://opendatacommunities.org/id/metropolitan-district-council/wolverhampton","NATWEST BANK","100.00","Democratic Support","6011","Services - Bank Charges","22/05/2017"
"Wolverhampton City Council","http://opendatacommunities.org/id/metropolitan-district-council/wolverhampton","AMAZON UK RETAIL AMAZO","26.79","Inclusion Support","5999","Books","22/05/2017"
"Wolverhampton City Council","http://opendatacommunities.org/id/metropolitan-district-council/wolverhampton","PATOSS-DYSLEX.ORG","12.45","Inclusion Support","8220","Books","22/05/2017"
"Wolverhampton City Council","http://opendatacommunities.org/id/metropolitan-district-council/wolverhampton","Amazon UK Marketplace","12.80","Inclusion Support","5942","Books","22/05/2017"
"Wolverhampton City Council","http://opendatacommunities.org/id/metropolitan-district-council/wolverhampton","WWW.REDSPOTTEDHANK","15.00","CIN/CP Social Work Unit - Area 5","4112","Public Transport","22/05/2017"
"Wolverhampton City Council","http://opendatacommunities.org/id/metropolitan-district-council/wolverhampton","ARGOS LTD","9.98","Strategic Director Place","5310","Equipment - Purchase","22/05/2017"
"Wolverhampton City Council","http://opendatacommunities.org/id/metropolitan-district-council/wolverhampton","EE LIMITED R501","10.00","School Crossing Patrol","4812","Comms - Mobile Telephones","22/05/2017"
"Wolverhampton City Council","http://opendatacommunities.org/id/metropolitan-district-council/wolverhampton","WWW.WMCA.CO.UK","132.00","CIN/CP Social Work Unit - Area 4","9399","Public Transport","22/05/2017"
"Wolverhampton City Council","http://opendatacommunities.org/id/metropolitan-district-council/wolverhampton","WWW.SHROPSHIRE-C.GOV.","16.50","CIN/CP Social Work Unit - Area 4","8220","Services - Fees and Charges","22/05/2017"
"Wolverhampton City Council","http://opendatacommunities.org/id/metropolitan-district-council/wolverhampton","WWW.CARESHOP.CO.UK","76.67","Ernest Bold Court","5999","Equipment - Purchase","22/05/2017"
"Wolverhampton City Council","http://opendatacommunities.org/id/metropolitan-district-council/wolverhampton","ALDI","6.47","Children & Family Contact Services","5411","Provisions (Not for resale)","22/05/2017"
"Wolverhampton City Council","http://opendatacommunities.org/id/metropolitan-district-council/wolverhampton","WEBSTERS OF WOLLASTON","8.33","Children & Family Contact Services","5261","Equipment - Purchase","22/05/2017"
"Wolverhampton City Council","http://opendatacommunities.org/id/metropolitan-district-council/wolverhampton","HOMEBASE LTD 114","37.92","SEN Early Years Team","5211","Materials","22/05/2017"
"Wolverhampton City Council","http://opendatacommunities.org/id/metropolitan-district-council/wolverhampton","SAINSBURYS","20.00","Ernest Bold Court","6011","Equipment - Purchase","22/05/2017"
"Wolverhampton City Council","http://opendatacommunities.org/id/metropolitan-district-council/wolverhampton","PREMIER INN","82.00","Fostering Team & Allowances","3811","Services - Supplies & Services to users","22/05/2017"
"Wolverhampton City Council","http://opendatacommunities.org/id/metropolitan-district-council/wolverhampton","WILKO RETAIL LIMIT","1.00","Central Costs","5722","Equipment - Purchase","22/05/2017"
"Wolverhampton City Council","http://opendatacommunities.org/id/metropolitan-district-council/wolverhampton","POUNDLAND LTD 1463","7.67","Safeguarding Admin Resource","5310","Equipment - Purchase","22/05/2017"
"Wolverhampton City Council","http://opendatacommunities.org/id/metropolitan-district-council/wolverhampton","WWW.ARGOS.CO.UK","81.20","CIN/CP Social Work Unit - Area 2","5310","Section 17","22/05/2017"
"Wolverhampton City Council","http://opendatacommunities.org/id/metropolitan-district-council/wolverhampton","BRITANNIA","42.50","CIN/CP Social Work Unit - Area 2","7011","Services - Supplies & Services to users","22/05/2017"
"Wolverhampton City Council","http://opendatacommunities.org/id/metropolitan-district-council/wolverhampton","Trainline","66.66","CIN/CP Social Work Unit - Area 2","4112","Public Transport","22/05/2017"
"Wolverhampton City Council","http://opendatacommunities.org/id/metropolitan-district-council/wolverhampton","MANCHESTER CITY COUNCI","1500.00","HRA General","9399","Services - Fees and Charges","22/05/2017"
"Wolverhampton City Council","http://opendatacommunities.org/id/metropolitan-district-council/wolverhampton","TESCO STORES 5397","1.62","EIP Locality 1","5411","Provisions (Not for resale)","22/05/2017"
"Wolverhampton City Council","http://opendatacommunities.org/id/metropolitan-district-council/wolverhampton","Amazon UK Marketplace","7.41","Towers Outdoor Education Centre","5942","Equipment - Purchase","22/05/2017"
"Wolverhampton City Council","http://opendatacommunities.org/id/metropolitan-district-council/wolverhampton","01DIRECT LTD","75.98","Civic Centre","4812","Comms - Mobile Telephones","22/05/2017"
"Wolverhampton City Council","http://opendatacommunities.org/id/metropolitan-district-council/wolverhampton","HM PASSPORT OFFICE","46.00","CIN/CP Social Work Unit - Area 6","9399","Services - Fees and Charges","22/05/2017"
"Wolverhampton City Council","http://opendatacommunities.org/id/metropolitan-district-council/wolverhampton","WAITROSE 696","84.96","Music Support Team","5411","Stationery","22/05/2017"
"Wolverhampton City Council","http://opendatacommunities.org/id/metropolitan-district-council/wolverhampton","ASDA HOME SHOPPING","27.02","EIP Locality 5","5411","Grant Payments","22/05/2017"
"Wolverhampton City Council","http://opendatacommunities.org/id/metropolitan-district-council/wolverhampton","WWW.ARGOS.CO.UK","79.99","EIP Locality 5","5310","Equipment - Purchase","22/05/2017"
"Wolverhampton City Council","http://opendatacommunities.org/id/metropolitan-district-council/wolverhampton","WWW.ARGOS.CO.UK","66.95","EIP Locality 5","5310","Equipment - Purchase","22/05/2017"
"Wolverhampton City Council","http://opendatacommunities.org/id/metropolitan-district-council/wolverhampton","WWW.ICO.GOV.UK","35.00","Members Expenses","9399","Subscriptions","22/05/2017"
"Wolverhampton City Council","http://opendatacommunities.org/id/metropolitan-district-council/wolverhampton","Amazon UK Marketplace","119.80","Global Budgets","5942","Stationery","22/05/2017"
"Wolverhampton City Council","http://opendatacommunities.org/id/metropolitan-district-council/wolverhampton","Amazon UK Marketplace","2.76","Global Budgets","5942","Books","22/05/2017"
"Wolverhampton City Council","http://opendatacommunities.org/id/metropolitan-district-council/wolverhampton","Amazon UK Marketplace","2.81","Global Budgets","5942","Books","22/05/2017"
"Wolverhampton City Council","http://opendatacommunities.org/id/metropolitan-district-council/wolverhampton","WWW.ICO.GOV.UK","35.00","Members Expenses","9399","Subscriptions","22/05/2017"
"Wolverhampton City Council","http://opendatacommunities.org/id/metropolitan-district-council/wolverhampton","WWW.ICO.GOV.UK","35.00","Members Expenses","9399","Subscriptions","22/05/2017"
"Wolverhampton City Council","http://opendatacommunities.org/id/metropolitan-district-council/wolverhampton","WWW.ICO.GOV.UK","35.00","Members Expenses","9399","Subscriptions","22/05/2017"
"Wolverhampton City Council","http://opendatacommunities.org/id/metropolitan-district-council/wolverhampton","WWW.ICO.GOV.UK","35.00","Members Expenses","9399","Subscriptions","22/05/2017"
"Wolverhampton City Council","http://opendatacommunities.org/id/metropolitan-district-council/wolverhampton","WWW.ICO.GOV.UK","35.00","Members Expenses","9399","Subscriptions","22/05/2017"
"Wolverhampton City Council","http://opendatacommunities.org/id/metropolitan-district-council/wolverhampton","WWW.ICO.GOV.UK","35.00","Members Expenses","9399","Subscriptions","22/05/2017"
"Wolverhampton City Council","http://opendatacommunities.org/id/metropolitan-district-council/wolverhampton","WWW.ICO.GOV.UK","35.00","Members Expenses","9399","Subscriptions","22/05/2017"
"Wolverhampton City Council","http://opendatacommunities.org/id/metropolitan-district-council/wolverhampton","WWW.ICO.GOV.UK","35.00","Members Expenses","9399","Subscriptions","22/05/2017"
"Wolverhampton City Council","http://opendatacommunities.org/id/metropolitan-district-council/wolverhampton","WWW.ICO.GOV.UK","35.00","Members Expenses","9399","Subscriptions","22/05/2017"
"Wolverhampton City Council","http://opendatacommunities.org/id/metropolitan-district-council/wolverhampton","WWW.ICO.GOV.UK","35.00","Members Expenses","9399","Subscriptions","22/05/2017"
"Wolverhampton City Council","http://opendatacommunities.org/id/metropolitan-district-council/wolverhampton","Virgin Trains","21.50","Members Expenses","4112","Public Transport","22/05/2017"
"Wolverhampton City Council","http://opendatacommunities.org/id/metropolitan-district-council/wolverhampton","TVLICENSING.CO.UK","147.00","Court of Protection, Funerals Prot Prop","7392","Services - Supplies & Services to users","19/05/2017"
"Wolverhampton City Council","http://opendatacommunities.org/id/metropolitan-district-council/wolverhampton","Amazon EU","2.50","EIP Locality 1","5969","Equipment - Purchase","19/05/2017"
"Wolverhampton City Council","http://opendatacommunities.org/id/metropolitan-district-council/wolverhampton","WWW.ARGOS.CO.UK","217.43","CIN/CP Social Work Unit - Area 2","5310","No Recourse to Public Funds","19/05/2017"
"Wolverhampton City Council","http://opendatacommunities.org/id/metropolitan-district-council/wolverhampton","AMAZON UK RETAIL AMAZO","95.64","Headstart Phase 3","5999","Computing - Consumables","19/05/2017"
"Wolverhampton City Council","http://opendatacommunities.org/id/metropolitan-district-council/wolverhampton","Amazon UK Marketplace","68.86","Headstart Phase 3","5942","Equipment - Purchase","19/05/2017"
"Wolverhampton City Council","http://opendatacommunities.org/id/metropolitan-district-council/wolverhampton","FASCIA BASE LTD","49.85","Public Conveniences","5211","R&M - Departmental planned (external)","19/05/2017"
"Wolverhampton City Council","http://opendatacommunities.org/id/metropolitan-district-council/wolverhampton","WWW.ARGOS.CO.UK","151.93","EIP Locality 5","5310","Furniture","19/05/2017"
"Wolverhampton City Council","http://opendatacommunities.org/id/metropolitan-district-council/wolverhampton","AMAZON UK RETAIL AMAZO","24.70","Language Studies Delivery Area","5999","Books","19/05/2017"
"Wolverhampton City Council","http://opendatacommunities.org/id/metropolitan-district-council/wolverhampton","CUMMINGS BROTHERS LOCK","175.00","Central Costs","7399","Equipment - Purchase","19/05/2017"
"Wolverhampton City Council","http://opendatacommunities.org/id/metropolitan-district-council/wolverhampton","ARGOS RETAIL GROUP","59.96","Creative Studies Delivery Area","5310","Equipment - Purchase","19/05/2017"
"Wolverhampton City Council","http://opendatacommunities.org/id/metropolitan-district-council/wolverhampton","STK SHUTTERSTOCK.COM","124.00","Central Costs","7333","Marketing \ Non-staff advertising","19/05/2017"
"Wolverhampton City Council","http://opendatacommunities.org/id/metropolitan-district-council/wolverhampton","STK SHUTTERSTOCK.COM","148.80","Central Costs","7333","Marketing \ Non-staff advertising","19/05/2017"
"Wolverhampton City Council","http://opendatacommunities.org/id/metropolitan-district-council/wolverhampton","STK SHUTTERSTOCK.COM","145.00","Central Costs","7333","Marketing \ Non-staff advertising","19/05/2017"
"Wolverhampton City Council","http://opendatacommunities.org/id/metropolitan-district-council/wolverhampton","TVLICENSING.CO.UK","147.00","Court of Protection, Funerals Prot Prop","7392","Services - Supplies & Services to users","19/05/2017"
"Wolverhampton City Council","http://opendatacommunities.org/id/metropolitan-district-council/wolverhampton","S J DIXON & SON LT","13.85","Community Enablement","5231","Materials","19/05/2017"
"Wolverhampton City Council","http://opendatacommunities.org/id/metropolitan-district-council/wolverhampton","WISEPOPSCOM","38.98","City Direct","7372","Computing - Purchase of Software","19/05/2017"
"Wolverhampton City Council","http://opendatacommunities.org/id/metropolitan-district-council/wolverhampton","POST OFFICE COUNTER","748.00","Adoption and Residence Team & Allowances","9402","Comms - Postage","19/05/2017"
"Wolverhampton City Council","http://opendatacommunities.org/id/metropolitan-district-council/wolverhampton","AMAZON UK RETAIL AMAZO","234.96","Headstart Phase 3","5999","Equipment - Purchase","19/05/2017"
"Wolverhampton City Council","http://opendatacommunities.org/id/metropolitan-district-council/wolverhampton","AMAZON UK RETAIL AMAZO","98.98","Headstart Phase 3","5999","Equipment - Purchase","19/05/2017"
"Wolverhampton City Council","http://opendatacommunities.org/id/metropolitan-district-council/wolverhampton","SCREWFIX WOLVERHAM","65.98","Hostels / Outreach","5211","Materials","19/05/2017"
"Wolverhampton City Council","http://opendatacommunities.org/id/metropolitan-district-council/wolverhampton","DIRECT CARPETS","220.00","EIP Locality 1","5713","Financial Assistance In Exceptional Circ","19/05/2017"
"Wolverhampton City Council","http://opendatacommunities.org/id/metropolitan-district-council/wolverhampton","Amazon UK Marketplace","33.25","LAC Transitions Team","5942","Client Allowances","19/05/2017"
"Wolverhampton City Council","http://opendatacommunities.org/id/metropolitan-district-council/wolverhampton","TESCO DELIVERY SAVER2","2.92","Towers Outdoor Education Centre","5968","Subscriptions","19/05/2017"
"Wolverhampton City Council","http://opendatacommunities.org/id/metropolitan-district-council/wolverhampton","TESCO STORE 2836","2.64","Towers Outdoor Education Centre","5411","Provisions (Not for resale)","19/05/2017"
"Wolverhampton City Council","http://opendatacommunities.org/id/metropolitan-district-council/wolverhampton","THE FLOWER STALL","50.00","Global Budgets","5992","Marketing \ Non-staff advertising","19/05/2017"
"Wolverhampton City Council","http://opendatacommunities.org/id/metropolitan-district-council/wolverhampton","Amazon Prime","7.99","EIP Locality 3","5968","Equipment - Purchase","19/05/2017"
"Wolverhampton City Council","http://opendatacommunities.org/id/metropolitan-district-council/wolverhampton","B & Q 1243","4.18","Duke Street Bungalows","5211","Equipment - R & M","19/05/2017"
"Wolverhampton City Council","http://opendatacommunities.org/id/metropolitan-district-council/wolverhampton","SAINSBURYS SACAT 2040","8.50","Ernest Bold Court","5411","Provisions (Not for resale)","19/05/2017"
"Wolverhampton City Council","http://opendatacommunities.org/id/metropolitan-district-council/wolverhampton","WAYFAIR STORES LIM","223.30","CIN/CP Social Work Unit - Area 5","5965","Furniture","19/05/2017"
"Wolverhampton City Council","http://opendatacommunities.org/id/metropolitan-district-council/wolverhampton","Virgin Trains","57.10","Strategic Director Place","4112","Public Transport","19/05/2017"
"Wolverhampton City Council","http://opendatacommunities.org/id/metropolitan-district-council/wolverhampton","Amazon UK Marketplace","7.99","Education And Access","5942","Materials","19/05/2017"
"Wolverhampton City Council","http://opendatacommunities.org/id/metropolitan-district-council/wolverhampton","Amazon UK Marketplace","30.74","Education And Access","5942","Materials","19/05/2017"
"Wolverhampton City Council","http://opendatacommunities.org/id/metropolitan-district-council/wolverhampton","Virgin Trains","23.00","City Centre Public Realm","4112","Public Transport","19/05/2017"
"Wolverhampton City Council","http://opendatacommunities.org/id/metropolitan-district-council/wolverhampton","DIRECT CARPETS","200.00","CIN/CP Social Work Unit - Area 1","5713","Section 17","19/05/2017"
"Wolverhampton City Council","http://opendatacommunities.org/id/metropolitan-district-council/wolverhampton","WWW.PCWB.COM","384.75","EIP Locality 5","5734","Computing - Purchase of Hardware","19/05/2017"
"Wolverhampton City Council","http://opendatacommunities.org/id/metropolitan-district-council/wolverhampton","Virgin Trains","275.50","Members Expenses","4112","Public Transport","19/05/2017"
"Wolverhampton City Council","http://opendatacommunities.org/id/metropolitan-district-council/wolverhampton","SPECSAVERSEVOUGB-","850.00","Eye Test Vouchers (HR)","8043","Medical Fees","18/05/2017"
"Wolverhampton City Council","http://opendatacommunities.org/id/metropolitan-district-council/wolverhampton","CARD MARKET","21.24","Macmillan Welfare Rights","5111","Stationery","18/05/2017"
"Wolverhampton City Council","http://opendatacommunities.org/id/metropolitan-district-council/wolverhampton","TFL ROAD CHARGE","11.50","LAC Education Team (LACE)","4784","Car Allowances","18/05/2017"
"Wolverhampton City Council","http://opendatacommunities.org/id/metropolitan-district-council/wolverhampton","Trainline","154.89","LAC Transitions Team","4112","Client Allowances","18/05/2017"
"Wolverhampton City Council","http://opendatacommunities.org/id/metropolitan-district-council/wolverhampton","Trainline","81.09","Youth Offending Team","4112","Public Transport","18/05/2017"
"Wolverhampton City Council","http://opendatacommunities.org/id/metropolitan-district-council/wolverhampton","CENTRAL ENG COOP","8.81","Cemeteries","5311","Equipment - Purchase","18/05/2017"
"Wolverhampton City Council","http://opendatacommunities.org/id/metropolitan-district-council/wolverhampton","POUNDWORLD RETAIL","8.05","Business Manager - Place","5310","Equipment - Purchase","18/05/2017"
"Wolverhampton City Council","http://opendatacommunities.org/id/metropolitan-district-council/wolverhampton","Amazon UK Marketplace","52.69","Headstart Phase 3","5942","Equipment - Purchase","18/05/2017"
"Wolverhampton City Council","http://opendatacommunities.org/id/metropolitan-district-council/wolverhampton","PO THE SCOTLANDS 2232","200.00","Headstart Phase 3","6011","Financial Assistance In Exceptional Circ","18/05/2017"
"Wolverhampton City Council","http://opendatacommunities.org/id/metropolitan-district-council/wolverhampton","Amazon UK Marketplace","58.33","Headstart Phase 3","5942","Equipment - Purchase","18/05/2017"
"Wolverhampton City Council","http://opendatacommunities.org/id/metropolitan-district-council/wolverhampton","Virgin Trains","121.00","LAC Team","4112","Public Transport","18/05/2017"
"Wolverhampton City Council","http://opendatacommunities.org/id/metropolitan-district-council/wolverhampton","ASDA GEORGE COM LEEDS","6.95","EIP Locality 5","5411","Clothing / Uniforms","18/05/2017"
"Wolverhampton City Council","http://opendatacommunities.org/id/metropolitan-district-council/wolverhampton","TV LICENSING","147.00","EIP Locality 5","7392","Services - General Licences","18/05/2017"
"Wolverhampton City Council","http://opendatacommunities.org/id/metropolitan-district-council/wolverhampton","WILKO RETAIL LIMIT","9.00","Central Costs","5722","Equipment - Purchase","18/05/2017"
"Wolverhampton City Council","http://opendatacommunities.org/id/metropolitan-district-council/wolverhampton","Amazon UK Marketplace","25.79","Language Studies Delivery Area","5942","Books","18/05/2017"
"Wolverhampton City Council","http://opendatacommunities.org/id/metropolitan-district-council/wolverhampton","ASDA  STORES 4845","102.62","LAC Transitions Team","5411","Client Allowances","18/05/2017"
"Wolverhampton City Council","http://opendatacommunities.org/id/metropolitan-district-council/wolverhampton","POUNDSTRETCHER 362","22.09","LAC Transitions Team","5714","Client Allowances","18/05/2017"
"Wolverhampton City Council","http://opendatacommunities.org/id/metropolitan-district-council/wolverhampton","MAPLIN REDDITCH B98","20.82","LAC Transitions Team","4812","Client Allowances","18/05/2017"
"Wolverhampton City Council","http://opendatacommunities.org/id/metropolitan-district-council/wolverhampton","PREMIER INN","-35.00","Headstart Phase 3","3811","Services - Supplies & Services to users","18/05/2017"
"Wolverhampton City Council","http://opendatacommunities.org/id/metropolitan-district-council/wolverhampton","WOLVERHAMPTON CC","2.50","Headstart Phase 3","7523","Parking Fees","18/05/2017"
"Wolverhampton City Council","http://opendatacommunities.org/id/metropolitan-district-council/wolverhampton","PREMIER INN","206.65","Headstart Phase 3","3811","Services - Supplies & Services to users","18/05/2017"
"Wolverhampton City Council","http://opendatacommunities.org/id/metropolitan-district-council/wolverhampton","WM MORRISON 024","200.00","CIN/CP Social Work Unit - Area 2","5411","No Recourse to Public Funds","18/05/2017"
"Wolverhampton City Council","http://opendatacommunities.org/id/metropolitan-district-council/wolverhampton","CUMMINGS BROTHERS LOCK","8.33","Civic Centre","7399","Equipment - Purchase","18/05/2017"
"Wolverhampton City Council","http://opendatacommunities.org/id/metropolitan-district-council/wolverhampton","WHIRLPOOL UK APPLIANCE","53.31","Ernest Bold Court","5065","Equipment - R & M","18/05/2017"
"Wolverhampton City Council","http://opendatacommunities.org/id/metropolitan-district-council/wolverhampton","POST OFFICE COUNTER","6.45","CIN/CP Social Work Unit - Area 5","9402","Comms - Postage","18/05/2017"
"Wolverhampton City Council","http://opendatacommunities.org/id/metropolitan-district-council/wolverhampton","CT HOME WEDNESFIELD","35.00","CIN/CP Social Work Unit - Area 4","8398","Services - Supplies & Services to users","18/05/2017"
"Wolverhampton City Council","http://opendatacommunities.org/id/metropolitan-district-council/wolverhampton","IF SOLUTIONS LTD","314.60","Music Support Team","7399","Equipment - Purchase","18/05/2017"
"Wolverhampton City Council","http://opendatacommunities.org/id/metropolitan-district-council/wolverhampton","HOLIDAY INN EXPRES","88.00","Adoption and Residence Team & Allowances","7011","Accommodation Costs","18/05/2017"
"Wolverhampton City Council","http://opendatacommunities.org/id/metropolitan-district-council/wolverhampton","HOTEL Hotel Map","264.00","Delivery & OCE Development","4722","Accommodation Costs","18/05/2017"
"Wolverhampton City Council","http://opendatacommunities.org/id/metropolitan-district-council/wolverhampton","Trainline","509.34","Delivery & OCE Development","4112","Public Transport","18/05/2017"
"Wolverhampton City Council","http://opendatacommunities.org/id/metropolitan-district-council/wolverhampton","CO-OP GROUP 070344","4.50","Northicote Farm","5411","Equipment - R & M","18/05/2017"
"Wolverhampton City Council","http://opendatacommunities.org/id/metropolitan-district-council/wolverhampton","HORNERSHEARING.COM","123.95","Northicote Farm","5251","Equipment - R & M","18/05/2017"
"Wolverhampton City Council","http://opendatacommunities.org/id/metropolitan-district-council/wolverhampton","TFM FARM & COUNTRY SUP","51.14","Northicote Farm","5399","Equipment - R & M","18/05/2017"
"Wolverhampton City Council","http://opendatacommunities.org/id/metropolitan-district-council/wolverhampton","AMAZON.CO.UK","1.86","Private Sector Housing","5999","Equipment - Purchase","18/05/2017"
"Wolverhampton City Council","http://opendatacommunities.org/id/metropolitan-district-council/wolverhampton","TESCO DIRECT","229.00","EIP Locality 1","5999","Financial Assistance In Exceptional Circ","18/05/2017"
"Wolverhampton City Council","http://opendatacommunities.org/id/metropolitan-district-council/wolverhampton","E01510300000000","100.00","MASH","6011","Services - Supplies & Services to users","18/05/2017"
"Wolverhampton City Council","http://opendatacommunities.org/id/metropolitan-district-council/wolverhampton","WP-THE CRATFS COUNCIL","115.85","Charlotte Hodes","8398","Marketing \ Non-staff advertising","18/05/2017"
"Wolverhampton City Council","http://opendatacommunities.org/id/metropolitan-district-council/wolverhampton","O E METCALFE","468.82","Towers Outdoor Education Centre","5499","Catering","18/05/2017"
"Wolverhampton City Council","http://opendatacommunities.org/id/metropolitan-district-council/wolverhampton","Amazon UK Marketplace","53.37","Towers Outdoor Education Centre","5942","Equipment - Purchase","18/05/2017"
"Wolverhampton City Council","http://opendatacommunities.org/id/metropolitan-district-council/wolverhampton","WWW.PROVAC.CO.UK","47.36","Blakenhall Commty & Healthy Living Ctr","2842","Cleaning Supplies and Materials","18/05/2017"
"Wolverhampton City Council","http://opendatacommunities.org/id/metropolitan-district-council/wolverhampton","WICKES","5.24","Specialist Support Service - North","5211","Equipment - R & M","18/05/2017"
"Wolverhampton City Council","http://opendatacommunities.org/id/metropolitan-district-council/wolverhampton","TVLICENSING.CO.UK","147.00","Ernest Bold Court","7392","Services - General Licences","18/05/2017"
"Wolverhampton City Council","http://opendatacommunities.org/id/metropolitan-district-council/wolverhampton","Trainline","94.76","CIN/CP Social Work Unit - Area 4","4112","Client Transport","18/05/2017"
"Wolverhampton City Council","http://opendatacommunities.org/id/metropolitan-district-council/wolverhampton","Amazon UK Marketplace","21.94","Macmillan Welfare Rights","5942","Stationery","18/05/2017"
"Wolverhampton City Council","http://opendatacommunities.org/id/metropolitan-district-council/wolverhampton","AMAZON UK RETAIL AMAZO","91.19","Mental Health Assessment & Care Mgmt","5999","Equipment - Purchase","18/05/2017"
"Wolverhampton City Council","http://opendatacommunities.org/id/metropolitan-district-council/wolverhampton","SHELL & WAITROSE","41.67","Mayoral Expenses","5541","Petrol","17/05/2017"
"Wolverhampton City Council","http://opendatacommunities.org/id/metropolitan-district-council/wolverhampton","LEGO","387.57","Headstart Phase 3","5945","Educ Trips, Holidays, Outings, Activity","17/05/2017"
"Wolverhampton City Council","http://opendatacommunities.org/id/metropolitan-district-council/wolverhampton","POST OFFICE COUNTER","65.00","Headstart Phase 3","9402","Comms - Postage","17/05/2017"
"Wolverhampton City Council","http://opendatacommunities.org/id/metropolitan-district-council/wolverhampton","HIGHFIELD HOUSE HO","385.00","CIN/CP Social Work Unit - Area 3","7011","Services - Supplies & Services to users","17/05/2017"
"Wolverhampton City Council","http://opendatacommunities.org/id/metropolitan-district-council/wolverhampton","TFM FARM & COUNTRY SUP","53.66","Northicote Farm","5399","Materials","17/05/2017"
"Wolverhampton City Council","http://opendatacommunities.org/id/metropolitan-district-council/wolverhampton","TFM FARM & COUNTRY SUP","189.84","Northicote Farm","5399","Materials","17/05/2017"
"Wolverhampton City Council","http://opendatacommunities.org/id/metropolitan-district-council/wolverhampton","B & Q 1243","13.23","Public Conveniences","5211","R&M - Departmental planned (external)","17/05/2017"
"Wolverhampton City Council","http://opendatacommunities.org/id/metropolitan-district-council/wolverhampton","LIDDELL ELECTRICAL DIS","53.00","Parkfields Centre","5065","Equipment - R & M","17/05/2017"
"Wolverhampton City Council","http://opendatacommunities.org/id/metropolitan-district-council/wolverhampton","Virgin Trains","122.00","Corporate Procurement Unit","4112","Public Transport","17/05/2017"
"Wolverhampton City Council","http://opendatacommunities.org/id/metropolitan-district-council/wolverhampton","Virgin Trains","102.40","Corporate Procurement Unit","4112","Public Transport","17/05/2017"
"Wolverhampton City Council","http://opendatacommunities.org/id/metropolitan-district-council/wolverhampton","FACEBK HC83YCW9R2","500.54","Communications & Marketing - General","7311","Marketing \ Non-staff advertising","17/05/2017"
"Wolverhampton City Council","http://opendatacommunities.org/id/metropolitan-district-council/wolverhampton","THE WORKS","19.20","Intensive Family Support Team","5310","Equipment - Purchase","17/05/2017"
"Wolverhampton City Council","http://opendatacommunities.org/id/metropolitan-district-council/wolverhampton","W M MORRISONS.COM","89.53","Discretionary Fund","5411","Materials","17/05/2017"
"Wolverhampton City Council","http://opendatacommunities.org/id/metropolitan-district-council/wolverhampton","Amazon UK Marketplace","6.79","Language Studies Delivery Area","5942","Books","17/05/2017"
"Wolverhampton City Council","http://opendatacommunities.org/id/metropolitan-district-council/wolverhampton","Amazon UK Marketplace","27.49","Central Costs","5942","Books","17/05/2017"
"Wolverhampton City Council","http://opendatacommunities.org/id/metropolitan-district-council/wolverhampton","ARGOS LTD","236.62","LAC Transitions Team","5310","Client Allowances","17/05/2017"
"Wolverhampton City Council","http://opendatacommunities.org/id/metropolitan-district-council/wolverhampton","ARGOS LTD","27.90","LAC Transitions Team","5310","Client Allowances","17/05/2017"
"Wolverhampton City Council","http://opendatacommunities.org/id/metropolitan-district-council/wolverhampton","Amazon EU","14.59","EIP Locality 1","5969","Equipment - Purchase","17/05/2017"
"Wolverhampton City Council","http://opendatacommunities.org/id/metropolitan-district-council/wolverhampton","TESCO STORES 5194","225.58","Towers Outdoor Education Centre","5411","Provisions (Not for resale)","17/05/2017"
"Wolverhampton City Council","http://opendatacommunities.org/id/metropolitan-district-council/wolverhampton","TIMPSON LTD","50.00","Blakenhall Commty & Healthy Living Ctr","7251","Fixtures and Fittings - R&M","17/05/2017"
"Wolverhampton City Council","http://opendatacommunities.org/id/metropolitan-district-council/wolverhampton","CLAREGATE S.STN FS408","5.00","Specialist Support Service - North","5541","Petrol","17/05/2017"
"Wolverhampton City Council","http://opendatacommunities.org/id/metropolitan-district-council/wolverhampton","AMAZON UK RETAIL AMAZO","33.48","Education And Access","5999","Materials","17/05/2017"
"Wolverhampton City Council","http://opendatacommunities.org/id/metropolitan-district-council/wolverhampton","YMLP.COM","105.00","Audience Development","7372","Subscriptions","17/05/2017"
"Wolverhampton City Council","http://opendatacommunities.org/id/metropolitan-district-council/wolverhampton","THE COAL AUTHORITY","78.30","Strategic Asset Management Team","9399","Services - Fees and Charges","17/05/2017"
"Wolverhampton City Council","http://opendatacommunities.org/id/metropolitan-district-council/wolverhampton","TRAINLINE","-177.20","CIN/CP Social Work Unit - Area 7","4112","Public Transport","17/05/2017"
"Wolverhampton City Council","http://opendatacommunities.org/id/metropolitan-district-council/wolverhampton","WWW.WESTMINSTER-BRIEFI","245.00","School Improvement","8244","Training Expenses","17/05/2017"
"Wolverhampton City Council","http://opendatacommunities.org/id/metropolitan-district-council/wolverhampton","Cross Country Trains","25.50","School Improvement","4112","Public Transport","17/05/2017"
"Wolverhampton City Council","http://opendatacommunities.org/id/metropolitan-district-council/wolverhampton","TRADEFIX DIRECT","55.66","Parks - South West Area Management","5039","Equipment - Purchase","17/05/2017"
"Wolverhampton City Council","http://opendatacommunities.org/id/metropolitan-district-council/wolverhampton","Amazon UK Marketplace","26.92","Street Cleansing Overheads","5942","Equipment - Purchase","17/05/2017"
"Wolverhampton City Council","http://opendatacommunities.org/id/metropolitan-district-council/wolverhampton","RCS FURNISHINGS","240.00","LAC Transitions Team","5712","Client Allowances","17/05/2017"
"Wolverhampton City Council","http://opendatacommunities.org/id/metropolitan-district-council/wolverhampton","WWW.LAMPSHOPONLINE.CO.","33.47","Maintenance of Exhibits","5072","Equipment - Purchase","17/05/2017"
"Wolverhampton City Council","http://opendatacommunities.org/id/metropolitan-district-council/wolverhampton","LOVE2SHOP.CO.UK","206.45","Public Health Commissioning","8641","Educ Trips, Holidays, Outings, Activity","16/05/2017"
"Wolverhampton City Council","http://opendatacommunities.org/id/metropolitan-district-council/wolverhampton","G & M HALE (SUNDRIES)","21.35","Creative Studies Delivery Area","5992","Materials for resale","16/05/2017"
"Wolverhampton City Council","http://opendatacommunities.org/id/metropolitan-district-council/wolverhampton","G & M HALE LTD","160.00","Discretionary Fund","5992","Materials","16/05/2017"
"Wolverhampton City Council","http://opendatacommunities.org/id/metropolitan-district-council/wolverhampton","G & M HALE LTD","108.90","Creative Studies Delivery Area","5992","Materials for resale","16/05/2017"
"Wolverhampton City Council","http://opendatacommunities.org/id/metropolitan-district-council/wolverhampton","Amazon UK Marketplace","20.79","Adoption and Residence Team & Allowances","5942","Stationery","16/05/2017"
"Wolverhampton City Council","http://opendatacommunities.org/id/metropolitan-district-council/wolverhampton","Trainline","165.14","Public Health Support Costs","4112","Public Transport","16/05/2017"
"Wolverhampton City Council","http://opendatacommunities.org/id/metropolitan-district-council/wolverhampton","ASDA HOME SHOPPING","38.23","EIP Locality 4","5411","Provisions (Not for resale)","16/05/2017"
"Wolverhampton City Council","http://opendatacommunities.org/id/metropolitan-district-council/wolverhampton","ASDA SUPERSTORE","55.76","EIP Locality 6","5411","Provisions (Not for resale)","16/05/2017"
"Wolverhampton City Council","http://opendatacommunities.org/id/metropolitan-district-council/wolverhampton","RADISSION BLU EDW","162.00","Service Director City Environment","7011","Accommodation Costs","16/05/2017"
"Wolverhampton City Council","http://opendatacommunities.org/id/metropolitan-district-council/wolverhampton","B&M RETAIL LTD","17.75","Headstart Phase 3","5310","Subsistence","16/05/2017"
"Wolverhampton City Council","http://opendatacommunities.org/id/metropolitan-district-council/wolverhampton","LOYD 89 CHURCH STREET","100.00","EIP Locality 2","6011","Financial Assistance In Exceptional Circ","16/05/2017"
"Wolverhampton City Council","http://opendatacommunities.org/id/metropolitan-district-council/wolverhampton","CURRYS ONLINE","169.99","LAC Team","5732","Financial Assistance In Exceptional Circ","16/05/2017"
"Wolverhampton City Council","http://opendatacommunities.org/id/metropolitan-district-council/wolverhampton","Amazon UK Marketplace","5.80","Language Studies Delivery Area","5942","Books","16/05/2017"
"Wolverhampton City Council","http://opendatacommunities.org/id/metropolitan-district-council/wolverhampton","SCREWFIX DIRECT","59.97","Central Costs","5211","Equipment - Purchase","16/05/2017"
"Wolverhampton City Council","http://opendatacommunities.org/id/metropolitan-district-council/wolverhampton","AMAZON UK RETAIL AMAZO","509.42","Technical Support","5999","Equipment - Purchase","16/05/2017"
"Wolverhampton City Council","http://opendatacommunities.org/id/metropolitan-district-council/wolverhampton","B&M RETAIL","34.14","LAC Transitions Team","5310","Client Allowances","16/05/2017"
"Wolverhampton City Council","http://opendatacommunities.org/id/metropolitan-district-council/wolverhampton","ARGOS LTD","89.15","LAC Transitions Team","5310","Client Allowances","16/05/2017"
"Wolverhampton City Council","http://opendatacommunities.org/id/metropolitan-district-council/wolverhampton","ASDA HOME SHOPPING","-0.28","Ernest Bold Court","5411","Provisions (Not for resale)","16/05/2017"
"Wolverhampton City Council","http://opendatacommunities.org/id/metropolitan-district-council/wolverhampton","Virgin Trains","14.90","Strategic Asset Management - General","4112","Public Transport","16/05/2017"
"Wolverhampton City Council","http://opendatacommunities.org/id/metropolitan-district-council/wolverhampton","Amazon UK Marketplace","99.32","Research & Development","5942","Books","16/05/2017"
"Wolverhampton City Council","http://opendatacommunities.org/id/metropolitan-district-council/wolverhampton","WYNNSTAY ARGICULTURAL","127.53","Towers Outdoor Education Centre","5311","Equipment - Purchase","16/05/2017"
"Wolverhampton City Council","http://opendatacommunities.org/id/metropolitan-district-council/wolverhampton","ASDA HOME SHOPPING","82.94","Ernest Bold Court","5411","Provisions (Not for resale)","16/05/2017"
"Wolverhampton City Council","http://opendatacommunities.org/id/metropolitan-district-council/wolverhampton","AMAZON.CO.UK","15.65","Education And Access","5999","Materials","16/05/2017"
"Wolverhampton City Council","http://opendatacommunities.org/id/metropolitan-district-council/wolverhampton","Amazon UK Marketplace","41.86","Education And Access","5942","Books","16/05/2017"
"Wolverhampton City Council","http://opendatacommunities.org/id/metropolitan-district-council/wolverhampton","Amazon UK Marketplace","13.71","Education And Access","5942","Materials","16/05/2017"
"Wolverhampton City Council","http://opendatacommunities.org/id/metropolitan-district-council/wolverhampton","Amazon UK Marketplace","49.59","Education And Access","5942","Materials","16/05/2017"
"Wolverhampton City Council","http://opendatacommunities.org/id/metropolitan-district-council/wolverhampton","TOOLSTATION LTD","12.27","Education Catering - General Overheads","5251","Equipment - R & M","16/05/2017"
"Wolverhampton City Council","http://opendatacommunities.org/id/metropolitan-district-council/wolverhampton","REGISTRARS OFFICE","11.00","CIN/CP Social Work Unit - Area 7","8299","Training Expenses","16/05/2017"
"Wolverhampton City Council","http://opendatacommunities.org/id/metropolitan-district-council/wolverhampton","G & M HALE (SUNDRIES)","14.80","Discretionary Fund","5992","Materials","16/05/2017"
"Wolverhampton City Council","http://opendatacommunities.org/id/metropolitan-district-council/wolverhampton","ASDA SUPERSTORE","12.31","Mayoral Expenses","5411","Hospitality","16/05/2017"
"Wolverhampton City Council","http://opendatacommunities.org/id/metropolitan-district-council/wolverhampton","WWW.REDSPOTTEDHANK","178.40","Macmillan Welfare Rights","4112","Public Transport","16/05/2017"
"Wolverhampton City Council","http://opendatacommunities.org/id/metropolitan-district-council/wolverhampton","HOME BARGAINS","19.19","Cemeteries","5251","Equipment - Purchase","16/05/2017"
"Wolverhampton City Council","http://opendatacommunities.org/id/metropolitan-district-council/wolverhampton","ARGOS LTD","99.99","Cemeteries","5310","Equipment - Purchase","16/05/2017"
"Wolverhampton City Council","http://opendatacommunities.org/id/metropolitan-district-council/wolverhampton","Amazon UK Marketplace","6.45","EIP Locality 8","5942","Equipment - Purchase","15/05/2017"
"Wolverhampton City Council","http://opendatacommunities.org/id/metropolitan-district-council/wolverhampton","LOOP11.COM","159.47","City Direct","7372","Computing - Purchase of Software","15/05/2017"
"Wolverhampton City Council","http://opendatacommunities.org/id/metropolitan-district-council/wolverhampton","POST OFFICE COUNTER","5.71","LAC Transitions Team","9402","Comms - Postage","15/05/2017"
"Wolverhampton City Council","http://opendatacommunities.org/id/metropolitan-district-council/wolverhampton","NOVOTEL WOLVERHAMPTON","512.00","Adoption and Residence Team & Allowances","7011","Services - Supplies & Services to users","15/05/2017"
"Wolverhampton City Council","http://opendatacommunities.org/id/metropolitan-district-council/wolverhampton","Trainline","61.71","Strategic ICTS (ICT Serv Budget)","4112","Public Transport","15/05/2017"
"Wolverhampton City Council","http://opendatacommunities.org/id/metropolitan-district-council/wolverhampton","SCREWFIX DIRECT","58.94","Caretakers Community Centre","5211","Materials","15/05/2017"
"Wolverhampton City Council","http://opendatacommunities.org/id/metropolitan-district-council/wolverhampton","ASDA HOME SHOPPING","-0.35","Upper Pendeford Farm Childrens Home","5411","Provisions (Not for resale)","15/05/2017"
"Wolverhampton City Council","http://opendatacommunities.org/id/metropolitan-district-council/wolverhampton","ASDA HOME SHOPPING","215.38","Upper Pendeford Farm Childrens Home","5411","Provisions (Not for resale)","15/05/2017"
"Wolverhampton City Council","http://opendatacommunities.org/id/metropolitan-district-council/wolverhampton","Trainline","187.17","Quality Assurance & Policies","4112","Public Transport","15/05/2017"
"Wolverhampton City Council","http://opendatacommunities.org/id/metropolitan-district-council/wolverhampton","SAINSBURYS (2340)","9.90","Quality Assurance & Policies","5411","Provisions (Not for resale)","15/05/2017"
"Wolverhampton City Council","http://opendatacommunities.org/id/metropolitan-district-council/wolverhampton","Amazon UK Marketplace","33.12","Electoral Registration","5942","Books","15/05/2017"
"Wolverhampton City Council","http://opendatacommunities.org/id/metropolitan-district-council/wolverhampton","Amazon UK Marketplace","57.50","Safeguarding Admin Resource","5942","Equipment - Purchase","15/05/2017"
"Wolverhampton City Council","http://opendatacommunities.org/id/metropolitan-district-council/wolverhampton","Trainline","172.38","CIN/CP Social Work Unit - Area 4","4112","Public Transport","15/05/2017"
"Wolverhampton City Council","http://opendatacommunities.org/id/metropolitan-district-council/wolverhampton","CT HOME WEDNESFIELD","92.50","CIN/CP Social Work Unit - Area 4","8398","Services - Supplies & Services to users","15/05/2017"
"Wolverhampton City Council","http://opendatacommunities.org/id/metropolitan-district-council/wolverhampton","Amazon EU","29.46","Parks - East Area Management","5969","Equipment - Purchase","15/05/2017"
"Wolverhampton City Council","http://opendatacommunities.org/id/metropolitan-district-council/wolverhampton","Amazon UK Marketplace","7.28","Parks - East Area Management","5942","Equipment - Purchase","15/05/2017"
"Wolverhampton City Council","http://opendatacommunities.org/id/metropolitan-district-council/wolverhampton","Amazon UK Marketplace","2.02","Street Cleansing Overheads","5942","Equipment - Purchase","15/05/2017"
"Wolverhampton City Council","http://opendatacommunities.org/id/metropolitan-district-council/wolverhampton","Amazon UK Marketplace","2.53","Street Cleansing Overheads","5942","Equipment - Purchase","15/05/2017"
"Wolverhampton City Council","http://opendatacommunities.org/id/metropolitan-district-council/wolverhampton","Amazon UK Marketplace","7.80","Street Cleansing Overheads","5942","Equipment - Purchase","15/05/2017"
"Wolverhampton City Council","http://opendatacommunities.org/id/metropolitan-district-council/wolverhampton","Amazon UK Marketplace","83.91","Parks - Management and Admin","5942","Books","15/05/2017"
"Wolverhampton City Council","http://opendatacommunities.org/id/metropolitan-district-council/wolverhampton","Virgin Trains","106.00","Strategic Asset Management - General","4112","Public Transport","15/05/2017"
"Wolverhampton City Council","http://opendatacommunities.org/id/metropolitan-district-council/wolverhampton","Amazon UK Marketplace","2.25","EIP Locality 2","5942","Books","15/05/2017"
"Wolverhampton City Council","http://opendatacommunities.org/id/metropolitan-district-council/wolverhampton","BRITANNIA","167.08","CIN/CP Social Work Unit - Area 2","7011","Section 17","15/05/2017"
"Wolverhampton City Council","http://opendatacommunities.org/id/metropolitan-district-council/wolverhampton","Trainline","60.69","CIN/CP Social Work Unit - Area 2","4112","Section 17","15/05/2017"
"Wolverhampton City Council","http://opendatacommunities.org/id/metropolitan-district-council/wolverhampton","ARGOS LTD","49.99","Duke Street Bungalows","5310","Catering","15/05/2017"
"Wolverhampton City Council","http://opendatacommunities.org/id/metropolitan-district-council/wolverhampton","ARGOS LTD","49.99","Duke Street Bungalows","5310","Catering","15/05/2017"
"Wolverhampton City Council","http://opendatacommunities.org/id/metropolitan-district-council/wolverhampton","Amazon UK Marketplace","2.83","EIP Locality 7","5942","Equipment - Purchase","15/05/2017"
"Wolverhampton City Council","http://opendatacommunities.org/id/metropolitan-district-council/wolverhampton","WWW.WMCA.CO.UK","54.50","CIN/CP Social Work Unit - Area 3","9399","No Recourse to Public Funds","15/05/2017"
"Wolverhampton City Council","http://opendatacommunities.org/id/metropolitan-district-council/wolverhampton","WWW.BESTINTHECOUNTRY.C","11.75","Information Governance Team","5691","Equipment - Purchase","15/05/2017"
"Wolverhampton City Council","http://opendatacommunities.org/id/metropolitan-district-council/wolverhampton","WIX.COM","46.57","Technical Support","5968","Subscriptions","15/05/2017"
"Wolverhampton City Council","http://opendatacommunities.org/id/metropolitan-district-council/wolverhampton","INPRINT LITHO LTD","512.00","Technical Support","2741","Publications","15/05/2017"
"Wolverhampton City Council","http://opendatacommunities.org/id/metropolitan-district-council/wolverhampton","Amazon UK Marketplace","24.15","Global Budgets","5942","Stationery","15/05/2017"
"Wolverhampton City Council","http://opendatacommunities.org/id/metropolitan-district-council/wolverhampton","ASDA HOME SHOPPING","-1.00","Ernest Bold Court","5411","Provisions (Not for resale)","15/05/2017"
"Wolverhampton City Council","http://opendatacommunities.org/id/metropolitan-district-council/wolverhampton","ASDA HOME SHOPPING","93.86","Ernest Bold Court","5411","Provisions (Not for resale)","15/05/2017"
"Wolverhampton City Council","http://opendatacommunities.org/id/metropolitan-district-council/wolverhampton","Nochex. NATIONWIDE WOR","12.26","Play General","5137","Clothing / Uniforms","15/05/2017"
"Wolverhampton City Council","http://opendatacommunities.org/id/metropolitan-district-council/wolverhampton","PAYPAL  CENTRALCONF","135.00","Workforce Development","7299","Training Expenses","15/05/2017"
"Wolverhampton City Council","http://opendatacommunities.org/id/metropolitan-district-council/wolverhampton","Virgin Trains","140.30","Central Training","4112","Public Transport","15/05/2017"
"Wolverhampton City Council","http://opendatacommunities.org/id/metropolitan-district-council/wolverhampton","Amazon UK Marketplace","21.92","Children & Family Contact Services","5942","Equipment - Purchase","15/05/2017"
"Wolverhampton City Council","http://opendatacommunities.org/id/metropolitan-district-council/wolverhampton","Amazon UK Marketplace","127.57","Children & Family Contact Services","5942","Equipment - Purchase","15/05/2017"
"Wolverhampton City Council","http://opendatacommunities.org/id/metropolitan-district-council/wolverhampton","Amazon UK Marketplace","14.67","Children & Family Contact Services","5942","Equipment - Purchase","15/05/2017"
"Wolverhampton City Council","http://opendatacommunities.org/id/metropolitan-district-council/wolverhampton","Amazon UK Marketplace","36.33","Children & Family Contact Services","5942","Cleaning Supplies and Materials","15/05/2017"
"Wolverhampton City Council","http://opendatacommunities.org/id/metropolitan-district-council/wolverhampton","Amazon UK Marketplace","14.83","Parks - East Area Management","5942","Equipment - Purchase","15/05/2017"
"Wolverhampton City Council","http://opendatacommunities.org/id/metropolitan-district-council/wolverhampton","Amazon UK Marketplace","6.60","Parks - East Area Management","5942","Equipment - Purchase","15/05/2017"
"Wolverhampton City Council","http://opendatacommunities.org/id/metropolitan-district-council/wolverhampton","ASDA HOME SHOPPING","-4.00","EIP Locality 5","5411","Provisions (Not for resale)","15/05/2017"
"Wolverhampton City Council","http://opendatacommunities.org/id/metropolitan-district-council/wolverhampton","ASDA HOME SHOPPING","32.72","EIP Locality 5","5411","Grant Payments","15/05/2017"
"Wolverhampton City Council","http://opendatacommunities.org/id/metropolitan-district-council/wolverhampton","B&M RETAIL","16.66","LAC Transitions Team","5310","Client Allowances","15/05/2017"
"Wolverhampton City Council","http://opendatacommunities.org/id/metropolitan-district-council/wolverhampton","DUNELM (SOFT FURNISHIN","10.00","LAC Transitions Team","5714","Client Allowances","15/05/2017"
"Wolverhampton City Council","http://opendatacommunities.org/id/metropolitan-district-council/wolverhampton","CT WOLVERHAMPTON","66.67","LAC Transitions Team","8398","Client Allowances","15/05/2017"
"Wolverhampton City Council","http://opendatacommunities.org/id/metropolitan-district-council/wolverhampton","SAINSBURYS 2040","20.01","Duke Street Bungalows","5411","Provisions (Not for resale)","15/05/2017"
"Wolverhampton City Council","http://opendatacommunities.org/id/metropolitan-district-council/wolverhampton","AMAZON UK RETAIL AMAZO","35.18","Carers Support","5999","Equipment - Purchase","15/05/2017"
"Wolverhampton City Council","http://opendatacommunities.org/id/metropolitan-district-council/wolverhampton","AMAZON UK RETAIL AMAZO","35.18","Carers Support","5999","Equipment - Purchase","15/05/2017"
"Wolverhampton City Council","http://opendatacommunities.org/id/metropolitan-district-council/wolverhampton","AMAZON UK RETAIL AMAZO","108.33","EIP Locality 7","5999","Equipment - Purchase","15/05/2017"
"Wolverhampton City Council","http://opendatacommunities.org/id/metropolitan-district-council/wolverhampton","AMAZON UK RETAIL AMAZO","108.33","EIP Locality 7","5999","Equipment - Purchase","15/05/2017"
"Wolverhampton City Council","http://opendatacommunities.org/id/metropolitan-district-council/wolverhampton","WWW.ARGOS.CO.UK","27.89","EIP Locality 7","5310","Equipment - Purchase","15/05/2017"
"Wolverhampton City Council","http://opendatacommunities.org/id/metropolitan-district-council/wolverhampton","Amazon UK Marketplace","46.40","EIP Locality 7","5942","Equipment - Purchase","15/05/2017"
"Wolverhampton City Council","http://opendatacommunities.org/id/metropolitan-district-council/wolverhampton","Amazon UK Marketplace","22.49","EIP Locality 7","5942","Equipment - Purchase","15/05/2017"
"Wolverhampton City Council","http://opendatacommunities.org/id/metropolitan-district-council/wolverhampton","Amazon UK Marketplace","11.00","EIP Locality 7","5942","Equipment - Purchase","15/05/2017"
"Wolverhampton City Council","http://opendatacommunities.org/id/metropolitan-district-council/wolverhampton","E01350800000000","20.00","Ernest Bold Court","6011","Equipment - Purchase","15/05/2017"
"Wolverhampton City Council","http://opendatacommunities.org/id/metropolitan-district-council/wolverhampton","HALFORDS 0775","2.83","Mayoral Expenses","5940","Materials","15/05/2017"
"Wolverhampton City Council","http://opendatacommunities.org/id/metropolitan-district-council/wolverhampton","E01353600000000","100.00","Childrens with Disabilities Team","6011","No Recourse to Public Funds","15/05/2017"
"Wolverhampton City Council","http://opendatacommunities.org/id/metropolitan-district-council/wolverhampton","E01353600000000","240.00","Childrens with Disabilities Team","6011","No Recourse to Public Funds","15/05/2017"
"Wolverhampton City Council","http://opendatacommunities.org/id/metropolitan-district-council/wolverhampton","Amazon UK Marketplace","35.18","EIP Locality 8","5942","Equipment - Purchase","15/05/2017"
"Wolverhampton City Council","http://opendatacommunities.org/id/metropolitan-district-council/wolverhampton","Amazon UK Marketplace","34.76","EIP Locality 8","5942","Equipment - Purchase","15/05/2017"
"Wolverhampton City Council","http://opendatacommunities.org/id/metropolitan-district-council/wolverhampton","Amazon UK Marketplace","16.36","EIP Locality 8","5942","Equipment - Purchase","15/05/2017"
"Wolverhampton City Council","http://opendatacommunities.org/id/metropolitan-district-council/wolverhampton","Amazon UK Marketplace","5.73","EIP Locality 8","5942","Equipment - Purchase","15/05/2017"
"Wolverhampton City Council","http://opendatacommunities.org/id/metropolitan-district-council/wolverhampton","LIDL UK","15.81","Children & Family Contact Services","5411","Equipment - Purchase","12/05/2017"
"Wolverhampton City Council","http://opendatacommunities.org/id/metropolitan-district-council/wolverhampton","BP MANDEVILLE S/SERVE","5.75","Mayoral Expenses","5541","Subsistence","12/05/2017"
"Wolverhampton City Council","http://opendatacommunities.org/id/metropolitan-district-council/wolverhampton","FlybeCG9F CG9FRR","371.30","Leonardo Da Vinci Project","4511","Public Transport","12/05/2017"
"Wolverhampton City Council","http://opendatacommunities.org/id/metropolitan-district-council/wolverhampton","TESCO DIRECT","207.50","LAC Transitions Team","5999","Client Allowances","12/05/2017"
"Wolverhampton City Council","http://opendatacommunities.org/id/metropolitan-district-council/wolverhampton","Amazon EU","44.99","Strategic ICTS (ICT Serv Budget)","5969","Equipment - Purchase","12/05/2017"
"Wolverhampton City Council","http://opendatacommunities.org/id/metropolitan-district-council/wolverhampton","CUMMINGS BROTHERS LOCK","4.17","Statutory Services (10RM)","7399","Equipment - Purchase","12/05/2017"
"Wolverhampton City Council","http://opendatacommunities.org/id/metropolitan-district-council/wolverhampton","CUMMINGS BROTHERS LOCK","16.67","Caretakers Community Centre","7399","Equipment - Purchase","12/05/2017"
"Wolverhampton City Council","http://opendatacommunities.org/id/metropolitan-district-council/wolverhampton","CUMMINGS BROTHERS LOCK","54.17","Caretakers Community Centre","7399","Equipment - Purchase","12/05/2017"
"Wolverhampton City Council","http://opendatacommunities.org/id/metropolitan-district-council/wolverhampton","Amazon UK Marketplace","53.77","Children & Family Contact Services","5942","Equipment - Purchase","12/05/2017"
"Wolverhampton City Council","http://opendatacommunities.org/id/metropolitan-district-council/wolverhampton","MOTHERCARE DIRECT-E-CO","67.95","SEN Early Years Team","5311","Equipment - Purchase","12/05/2017"
"Wolverhampton City Council","http://opendatacommunities.org/id/metropolitan-district-council/wolverhampton","THE FLOWER STALL","12.50","Mayoral Expenses","5992","Hospitality","12/05/2017"
"Wolverhampton City Council","http://opendatacommunities.org/id/metropolitan-district-council/wolverhampton","POST OFFICE COUNTER","179.00","Fostering Team & Allowances","9402","Comms - Postage","12/05/2017"
"Wolverhampton City Council","http://opendatacommunities.org/id/metropolitan-district-council/wolverhampton","KONICA MINOLTA BUSINES","168.21","Music Support Team","7399","Equipment - R & M","12/05/2017"
"Wolverhampton City Council","http://opendatacommunities.org/id/metropolitan-district-council/wolverhampton","KONICA MINOLTA BUSINES","327.82","Music Support Team","7399","Equipment - R & M","12/05/2017"
"Wolverhampton City Council","http://opendatacommunities.org/id/metropolitan-district-council/wolverhampton","WEST PARK NEWS","6.33","EIP Locality 5","5411","Provisions (Not for resale)","12/05/2017"
"Wolverhampton City Council","http://opendatacommunities.org/id/metropolitan-district-council/wolverhampton","WAYFAIR STORES LIM","91.65","EIP Locality 5","5965","Equipment - Purchase","12/05/2017"
"Wolverhampton City Council","http://opendatacommunities.org/id/metropolitan-district-council/wolverhampton","Amazon UK Marketplace","1.98","EIP Locality 7","5942","Equipment - Purchase","12/05/2017"
"Wolverhampton City Council","http://opendatacommunities.org/id/metropolitan-district-council/wolverhampton","Amazon UK Marketplace","217.61","EIP Locality 7","5942","Equipment - Purchase","12/05/2017"
"Wolverhampton City Council","http://opendatacommunities.org/id/metropolitan-district-council/wolverhampton","Amazon UK Marketplace","5.86","EIP Locality 7","5942","Equipment - Purchase","12/05/2017"
"Wolverhampton City Council","http://opendatacommunities.org/id/metropolitan-district-council/wolverhampton","TFM FARM & COUNTRY SUP","71.45","Northicote Farm","5399","Materials","12/05/2017"
"Wolverhampton City Council","http://opendatacommunities.org/id/metropolitan-district-council/wolverhampton","Virgin Trains","182.00","Communications & Marketing - General","4112","Public Transport","12/05/2017"
"Wolverhampton City Council","http://opendatacommunities.org/id/metropolitan-district-council/wolverhampton","WOLVERHAMPTON CC","3.33","Headstart Phase 3","7523","Parking Fees","12/05/2017"
"Wolverhampton City Council","http://opendatacommunities.org/id/metropolitan-district-council/wolverhampton","Virgin Trains","8.10","Children & Young People Support Costs","4112","Public Transport","12/05/2017"
"Wolverhampton City Council","http://opendatacommunities.org/id/metropolitan-district-council/wolverhampton","123-REG.CO.UK","0.99","Technical Support","4816","Computing - Purchase of Software","12/05/2017"
"Wolverhampton City Council","http://opendatacommunities.org/id/metropolitan-district-council/wolverhampton","Wix.com","93.13","Technical Support","5817","Computing - Purchase of Software","12/05/2017"
"Wolverhampton City Council","http://opendatacommunities.org/id/metropolitan-district-council/wolverhampton","HOLLYBUSH NURSERIES LT","95.00","Play General","5261","Equipment - Purchase","12/05/2017"
"Wolverhampton City Council","http://opendatacommunities.org/id/metropolitan-district-council/wolverhampton","123-REG.CO.UK","2.38","Art Gallery","4816","Computing - Purchase of Software","12/05/2017"
"Wolverhampton City Council","http://opendatacommunities.org/id/metropolitan-district-council/wolverhampton","123-REG.CO.UK","2.38","Art Gallery","4816","Computing - Purchase of Software","12/05/2017"
"Wolverhampton City Council","http://opendatacommunities.org/id/metropolitan-district-council/wolverhampton","WOLVERHAMPTON CITY COU","21.00","The Little Civic","9399","Services - General Licences","12/05/2017"
"Wolverhampton City Council","http://opendatacommunities.org/id/metropolitan-district-council/wolverhampton","DVSA MOT COMP 2","153.75","Fleet Management","9399","MOT & HGV Tests","12/05/2017"
"Wolverhampton City Council","http://opendatacommunities.org/id/metropolitan-district-council/wolverhampton","WWW.WMCA.CO.UK","1806.42","Banking","4112","Public Transport","12/05/2017"
"Wolverhampton City Council","http://opendatacommunities.org/id/metropolitan-district-council/wolverhampton","Trainline","64.77","Legal Services","4112","Public Transport","11/05/2017"
"Wolverhampton City Council","http://opendatacommunities.org/id/metropolitan-district-council/wolverhampton","BRITANNIA","68.25","CIN/CP Social Work Unit - Area 5","7011","Accommodation Costs","11/05/2017"
"Wolverhampton City Council","http://opendatacommunities.org/id/metropolitan-district-council/wolverhampton","NOVOTEL WOLVERHAMPTON","94.00","CIN/CP Social Work Unit - Area 5","7011","Accommodation Costs","11/05/2017"
"Wolverhampton City Council","http://opendatacommunities.org/id/metropolitan-district-council/wolverhampton","NOVOTEL WOLVERHAMPTON","122.95","MASH","7011","Accommodation Costs","11/05/2017"
"Wolverhampton City Council","http://opendatacommunities.org/id/metropolitan-district-council/wolverhampton","Trainline","265.71","CIN/CP Social Work Unit - Area 8","4112","Public Transport","11/05/2017"
"Wolverhampton City Council","http://opendatacommunities.org/id/metropolitan-district-council/wolverhampton","Trainline","162.79","Assessment Team (West)","4112","Public Transport","11/05/2017"
"Wolverhampton City Council","http://opendatacommunities.org/id/metropolitan-district-council/wolverhampton","YORKSURVEY.CO.UK","116.51","Landscape","8911","Equipment - Purchase","11/05/2017"
"Wolverhampton City Council","http://opendatacommunities.org/id/metropolitan-district-council/wolverhampton","NANDOS WOLVERHAMPTON","50.00","Equalities","5812","Gratuities","11/05/2017"
"Wolverhampton City Council","http://opendatacommunities.org/id/metropolitan-district-council/wolverhampton","Amazon UK Marketplace","2.74","EIP Locality 2","5942","Books","11/05/2017"
"Wolverhampton City Council","http://opendatacommunities.org/id/metropolitan-district-council/wolverhampton","Amazon UK Marketplace","2.74","EIP Locality 2","5942","Books","11/05/2017"
"Wolverhampton City Council","http://opendatacommunities.org/id/metropolitan-district-council/wolverhampton","CARVER/WOLVERHAMPTON/L","40.88","Wholesale Market Facilities Management","5211","Cleaning Supplies and Materials","11/05/2017"
"Wolverhampton City Council","http://opendatacommunities.org/id/metropolitan-district-council/wolverhampton","AMAZON UK RETAIL AMAZO","22.98","EIP Locality 1","5999","Equipment - Purchase","11/05/2017"
"Wolverhampton City Council","http://opendatacommunities.org/id/metropolitan-district-council/wolverhampton","AMAZON UK RETAIL AMAZO","32.50","EIP Locality 1","5999","Equipment - Purchase","11/05/2017"
"Wolverhampton City Council","http://opendatacommunities.org/id/metropolitan-district-council/wolverhampton","TESCO STORES 5194","-5.00","Towers Outdoor Education Centre","5411","Provisions (Not for resale)","11/05/2017"
"Wolverhampton City Council","http://opendatacommunities.org/id/metropolitan-district-council/wolverhampton","WELSH CANOE ASSOC","38.50","Towers Outdoor Education Centre","5941","Equipment - Purchase","11/05/2017"
"Wolverhampton City Council","http://opendatacommunities.org/id/metropolitan-district-council/wolverhampton","WWW.STAPLES.CO.UK","108.67","Towers Outdoor Education Centre","5943","Equipment - Purchase","11/05/2017"
"Wolverhampton City Council","http://opendatacommunities.org/id/metropolitan-district-council/wolverhampton","STERMAT CAR AND VA","923.75","Towers Outdoor Education Centre","5541","Hire of Vehicles","11/05/2017"
"Wolverhampton City Council","http://opendatacommunities.org/id/metropolitan-district-council/wolverhampton","COTSWOLD OUTDOOR-MAIL","58.33","Towers Outdoor Education Centre","5691","Equipment - Purchase","11/05/2017"
"Wolverhampton City Council","http://opendatacommunities.org/id/metropolitan-district-council/wolverhampton","FUEL CARD SERVICES LTD","171.24","Towers Outdoor Education Centre","7399","Petrol","11/05/2017"
"Wolverhampton City Council","http://opendatacommunities.org/id/metropolitan-district-council/wolverhampton","ARGOS LTD","26.49","Education Catering - General Overheads","5310","Equipment - Purchase","11/05/2017"
"Wolverhampton City Council","http://opendatacommunities.org/id/metropolitan-district-council/wolverhampton","ARGOS LTD","51.99","Ernest Bold Court","5310","Equipment - Purchase","11/05/2017"
"Wolverhampton City Council","http://opendatacommunities.org/id/metropolitan-district-council/wolverhampton","AMT COFFEE","8.15","Mayoral Expenses","5812","Subsistence","11/05/2017"
"Wolverhampton City Council","http://opendatacommunities.org/id/metropolitan-district-council/wolverhampton","ONLINE SHOP","180.00","LAC Education Team (LACE)","8220","Training Expenses","11/05/2017"
"Wolverhampton City Council","http://opendatacommunities.org/id/metropolitan-district-council/wolverhampton","BRTMKT DBA FastSpring","5.05","Technical Support","5818","Computing - Purchase of Software","11/05/2017"
"Wolverhampton City Council","http://opendatacommunities.org/id/metropolitan-district-council/wolverhampton","APPLE ONLINE STORE GBP","204.17","Learning Technologies","5732","Equipment - Purchase","11/05/2017"
"Wolverhampton City Council","http://opendatacommunities.org/id/metropolitan-district-council/wolverhampton","WEST COAST TRAINS","43.20","Document Centre - General","4112","Public Transport","11/05/2017"
"Wolverhampton City Council","http://opendatacommunities.org/id/metropolitan-district-council/wolverhampton","WEST COAST TRAINS","52.00","Strategic ICTS (ICT Serv Budget)","4112","Public Transport","11/05/2017"
"Wolverhampton City Council","http://opendatacommunities.org/id/metropolitan-district-council/wolverhampton","VUE CISCO EXAM AT VUE","243.78","Strategic ICTS (ICT Serv Budget)","8299","Training Expenses","11/05/2017"
"Wolverhampton City Council","http://opendatacommunities.org/id/metropolitan-district-council/wolverhampton","WWWBHANGRABLAZECOM","20.00","WV Active Business Support","7997","Services - Professional Fees","11/05/2017"
"Wolverhampton City Council","http://opendatacommunities.org/id/metropolitan-district-council/wolverhampton","WEST COAST TRAINS","145.10","Mental Health Management","4112","Public Transport","11/05/2017"
"Wolverhampton City Council","http://opendatacommunities.org/id/metropolitan-district-council/wolverhampton","WWW.WMCA.CO.UK","54.50","EIP Locality 5","9399","Public Transport","11/05/2017"
"Wolverhampton City Council","http://opendatacommunities.org/id/metropolitan-district-council/wolverhampton","WOLVERHAMPTON CC","5.42","Headstart Phase 3","7523","Parking Fees","11/05/2017"
"Wolverhampton City Council","http://opendatacommunities.org/id/metropolitan-district-council/wolverhampton","WWW.ARGOS.CO.UK","232.45","EIP Locality 2","5310","Equipment - Purchase","11/05/2017"
"Wolverhampton City Council","http://opendatacommunities.org/id/metropolitan-district-council/wolverhampton","Amazon UK Marketplace","14.59","EIP Locality 2","5942","Books","11/05/2017"
"Wolverhampton City Council","http://opendatacommunities.org/id/metropolitan-district-council/wolverhampton","Amazon UK Marketplace","48.52","Learning Technologies","5942","Computing - Purchase of Hardware","11/05/2017"
"Wolverhampton City Council","http://opendatacommunities.org/id/metropolitan-district-council/wolverhampton","E09009100000000","10.00","EIP Locality 3","6011","Equipment - Purchase","11/05/2017"
"Wolverhampton City Council","http://opendatacommunities.org/id/metropolitan-district-council/wolverhampton","WALSALL COUNCIL","12.00","LAC Team","9399","Financial Assistance In Exceptional Circ","11/05/2017"
"Wolverhampton City Council","http://opendatacommunities.org/id/metropolitan-district-council/wolverhampton","HOLLYBUSH NURSERIES LT","83.33","Play General","5261","Equipment - Purchase","11/05/2017"
"Wolverhampton City Council","http://opendatacommunities.org/id/metropolitan-district-council/wolverhampton","WWW.REDSPOTTEDHANK","186.40","CIN/CP Social Work Unit - Area 5","4112","Public Transport","11/05/2017"
"Wolverhampton City Council","http://opendatacommunities.org/id/metropolitan-district-council/wolverhampton","WAYFAIR STORES LIM","83.32","CIN/CP Social Work Unit - Area 5","5965","Equipment - Purchase","11/05/2017"
"Wolverhampton City Council","http://opendatacommunities.org/id/metropolitan-district-council/wolverhampton","EE LIMITED R501","10.00","School Crossing Patrol","4812","Comms - Mobile Telephones","11/05/2017"
"Wolverhampton City Council","http://opendatacommunities.org/id/metropolitan-district-council/wolverhampton","PAYPAL  KIDZKARGOLT","295.00","CIN/CP Social Work Unit - Area 7","5641","Equipment - Purchase","11/05/2017"
"Wolverhampton City Council","http://opendatacommunities.org/id/metropolitan-district-council/wolverhampton","Trainline","192.47","CIN/CP Social Work Unit - Area 7","4112","Public Transport","11/05/2017"
"Wolverhampton City Council","http://opendatacommunities.org/id/metropolitan-district-council/wolverhampton","KCJONESCONF","108.33","Workforce Development","7922","Training Expenses","11/05/2017"
"Wolverhampton City Council","http://opendatacommunities.org/id/metropolitan-district-council/wolverhampton","SANDWELL M.B.C.","240.00","Central Training","9399","Training Expenses","10/05/2017"
"Wolverhampton City Council","http://opendatacommunities.org/id/metropolitan-district-council/wolverhampton","REGISTRARS OFFICE","7.00","Head of Service - CINCP","8299","Services - Professional Fees","10/05/2017"
"Wolverhampton City Council","http://opendatacommunities.org/id/metropolitan-district-council/wolverhampton","Trainline","228.58","Legal Services","4112","Public Transport","10/05/2017"
"Wolverhampton City Council","http://opendatacommunities.org/id/metropolitan-district-council/wolverhampton","Cross Country Trains","15.80","School Improvement","4112","Public Transport","10/05/2017"
"Wolverhampton City Council","http://opendatacommunities.org/id/metropolitan-district-council/wolverhampton","WM MORRISON 024","11.09","Fostering Team & Allowances","5411","Provisions (Not for resale)","10/05/2017"
"Wolverhampton City Council","http://opendatacommunities.org/id/metropolitan-district-council/wolverhampton","POST OFFICE COUNTER","43.75","Fostering Team & Allowances","9402","Comms - Postage","10/05/2017"
"Wolverhampton City Council","http://opendatacommunities.org/id/metropolitan-district-council/wolverhampton","TESCO - Buy It Direct","228.92","EIP Locality 2","5999","Financial Assistance In Exceptional Circ","10/05/2017"
"Wolverhampton City Council","http://opendatacommunities.org/id/metropolitan-district-council/wolverhampton","ARGOS RETAIL GROUP","44.37","EIP Locality 2","5310","Equipment - Purchase","10/05/2017"
"Wolverhampton City Council","http://opendatacommunities.org/id/metropolitan-district-council/wolverhampton","SAINSBURYS 2040","19.99","Duke Street Bungalows","5411","Provisions (Not for resale)","10/05/2017"
"Wolverhampton City Council","http://opendatacommunities.org/id/metropolitan-district-council/wolverhampton","TESCO STORES 5194","223.48","Towers Outdoor Education Centre","5411","Provisions (Not for resale)","10/05/2017"
"Wolverhampton City Council","http://opendatacommunities.org/id/metropolitan-district-council/wolverhampton","HSBC INVOICE FINAN","482.19","Towers Outdoor Education Centre","6012","Laundry Expenses","10/05/2017"
"Wolverhampton City Council","http://opendatacommunities.org/id/metropolitan-district-council/wolverhampton","BLAS AR FWYD CYF","49.82","Towers Outdoor Education Centre","5812","Educ Trips, Holidays, Outings, Activity","10/05/2017"
"Wolverhampton City Council","http://opendatacommunities.org/id/metropolitan-district-council/wolverhampton","HARLECH FOODSERVICE LT","161.20","Towers Outdoor Education Centre","5422","Catering","10/05/2017"
"Wolverhampton City Council","http://opendatacommunities.org/id/metropolitan-district-council/wolverhampton","BRITANNIA","65.25","CIN/CP Social Work Unit - Area 5","7011","Accommodation Costs","10/05/2017"
"Wolverhampton City Council","http://opendatacommunities.org/id/metropolitan-district-council/wolverhampton","BRITANNIA","16.50","CIN/CP Social Work Unit - Area 5","7011","Catering","10/05/2017"
"Wolverhampton City Council","http://opendatacommunities.org/id/metropolitan-district-council/wolverhampton","ASDA SUPERSTORE","12.00","CIN/CP Social Work Unit - Area 5","5411","Provisions (Not for resale)","10/05/2017"
"Wolverhampton City Council","http://opendatacommunities.org/id/metropolitan-district-council/wolverhampton","ASDA SUPERSTORE","12.00","CIN/CP Social Work Unit - Area 5","5411","Provisions (Not for resale)","10/05/2017"
"Wolverhampton City Council","http://opendatacommunities.org/id/metropolitan-district-council/wolverhampton","HIGHFIELD HOUSE HO","385.00","CIN/CP Social Work Unit - Area 3","7011","No Recourse to Public Funds","10/05/2017"
"Wolverhampton City Council","http://opendatacommunities.org/id/metropolitan-district-council/wolverhampton","Virgin Trains","116.80","Information Governance Team","4112","Public Transport","10/05/2017"
"Wolverhampton City Council","http://opendatacommunities.org/id/metropolitan-district-council/wolverhampton","STERMAT CAR AND VA","1257.10","Towers Outdoor Education Centre","5541","Hire of Vehicles","10/05/2017"
"Wolverhampton City Council","http://opendatacommunities.org/id/metropolitan-district-council/wolverhampton","HN NUTTALL LTD","154.15","Towers Outdoor Education Centre","5085","Provisions (Not for resale)","10/05/2017"
"Wolverhampton City Council","http://opendatacommunities.org/id/metropolitan-district-council/wolverhampton","Hotel on Booking.com","138.00","Learning Technologies","7011","Accommodation Costs","10/05/2017"
"Wolverhampton City Council","http://opendatacommunities.org/id/metropolitan-district-council/wolverhampton","Trainline","9.64","CIN/CP Social Work Unit - Area 5","4112","Public Transport","10/05/2017"
"Wolverhampton City Council","http://opendatacommunities.org/id/metropolitan-district-council/wolverhampton","PEAR TREE INN","130.00","Workforce Development","7011","Accommodation Costs","10/05/2017"
"Wolverhampton City Council","http://opendatacommunities.org/id/metropolitan-district-council/wolverhampton","CHARTERED INST OF LEGA","58.33","Legal Services","8699","Subscriptions","10/05/2017"
"Wolverhampton City Council","http://opendatacommunities.org/id/metropolitan-district-council/wolverhampton","ARGOS DIRECT","-181.46","CIN/CP Social Work Unit - Area 3","5964","Equipment - Purchase","10/05/2017"
"Wolverhampton City Council","http://opendatacommunities.org/id/metropolitan-district-council/wolverhampton","SMYTHS TOYS","22.52","CIN/CP Social Work Unit - Area 3","5945","Equipment - Purchase","10/05/2017"
"Wolverhampton City Council","http://opendatacommunities.org/id/metropolitan-district-council/wolverhampton","WWW.ARGOS.CO.UK","171.92","CIN/CP Social Work Unit - Area 3","5310","Equipment - Purchase","10/05/2017"
"Wolverhampton City Council","http://opendatacommunities.org/id/metropolitan-district-council/wolverhampton","HUGHES","209.99","CIN/CP Social Work Unit - Area 3","5732","Equipment - Purchase","10/05/2017"
"Wolverhampton City Council","http://opendatacommunities.org/id/metropolitan-district-council/wolverhampton","WILKO RETAIL LIMIT","8.00","Intensive Family Support Team","5722","Equipment - Purchase","10/05/2017"
"Wolverhampton City Council","http://opendatacommunities.org/id/metropolitan-district-council/wolverhampton","MAPLIN WOLVERHAMPT WV2","13.98","Intensive Family Support Team","4812","Comms - Mobile Telephones","10/05/2017"
"Wolverhampton City Council","http://opendatacommunities.org/id/metropolitan-district-council/wolverhampton","HM PASSPORT OFFICE","138.00","LAC Team","9399","Financial Assistance In Exceptional Circ","10/05/2017"
"Wolverhampton City Council","http://opendatacommunities.org/id/metropolitan-district-council/wolverhampton","E01510300000000","60.00","Emergency Duty Team","6011","Financial Assistance In Exceptional Circ","10/05/2017"
"Wolverhampton City Council","http://opendatacommunities.org/id/metropolitan-district-council/wolverhampton","W M MORRISONS.COM","181.07","Discretionary Fund","5411","Materials","10/05/2017"
"Wolverhampton City Council","http://opendatacommunities.org/id/metropolitan-district-council/wolverhampton","WM MORRISONS","20.70","Safeguarding Board - Childrens","5411","Provisions (Not for resale)","10/05/2017"
"Wolverhampton City Council","http://opendatacommunities.org/id/metropolitan-district-council/wolverhampton","ASDA SUPERSTORE","27.33","Telecare","5411","Equipment - R & M","10/05/2017"
"Wolverhampton City Council","http://opendatacommunities.org/id/metropolitan-district-council/wolverhampton","TESCO - Seller_IST_1_2","209.99","EIP Locality 2","5999","Financial Assistance In Exceptional Circ","10/05/2017"
"Wolverhampton City Council","http://opendatacommunities.org/id/metropolitan-district-council/wolverhampton","WWW.REDSPOTTEDHANK","200.50","Macmillan Welfare Rights","4112","Public Transport","10/05/2017"
"Wolverhampton City Council","http://opendatacommunities.org/id/metropolitan-district-council/wolverhampton","VWO.com","47.07","City Direct","7399","Equipment - Purchase","10/05/2017"
"Wolverhampton City Council","http://opendatacommunities.org/id/metropolitan-district-council/wolverhampton","Trainline","51.25","Youth Offending Team","4112","Public Transport","10/05/2017"
"Wolverhampton City Council","http://opendatacommunities.org/id/metropolitan-district-council/wolverhampton","HOLIDAY INNS","156.00","Public Health - Healthier Places Team","3501","Accommodation Costs","10/05/2017"
"Wolverhampton City Council","http://opendatacommunities.org/id/metropolitan-district-council/wolverhampton","HOLIDAY INNS","156.00","Health Protection & NHS Facing","3501","Services - Supplies & Services to users","10/05/2017"
"Wolverhampton City Council","http://opendatacommunities.org/id/metropolitan-district-council/wolverhampton","ASDA SUPERSTORE","8.00","Early Years & Universal Service","5411","Provisions (Not for resale)","10/05/2017"
"Wolverhampton City Council","http://opendatacommunities.org/id/metropolitan-district-council/wolverhampton","AMAZON UK RETAIL AMAZO","117.60","Strategic ICTS (ICT Serv Budget)","5999","Equipment - Purchase","10/05/2017"
"Wolverhampton City Council","http://opendatacommunities.org/id/metropolitan-district-council/wolverhampton","Amazon EU","139.80","Strategic ICTS (ICT Serv Budget)","5969","Equipment - Purchase","10/05/2017"
"Wolverhampton City Council","http://opendatacommunities.org/id/metropolitan-district-council/wolverhampton","POUNDLAND LTD 1463","4.17","City Direct","5310","Equipment - Purchase","09/05/2017"
"Wolverhampton City Council","http://opendatacommunities.org/id/metropolitan-district-council/wolverhampton","Amazon UK Marketplace","108.66","Strategic ICTS (ICT Serv Budget)","5942","Books","09/05/2017"
"Wolverhampton City Council","http://opendatacommunities.org/id/metropolitan-district-council/wolverhampton","ARGOS RETAIL GROUP","181.46","CIN/CP Social Work Unit - Area 3","5310","Equipment - Purchase","09/05/2017"
"Wolverhampton City Council","http://opendatacommunities.org/id/metropolitan-district-council/wolverhampton","SHROPSHIRESTAR.COM","66.00","Communications & Marketing - General","5994","Subscriptions","09/05/2017"
"Wolverhampton City Council","http://opendatacommunities.org/id/metropolitan-district-council/wolverhampton","Virgin Trains","42.30","LAC Team","4112","Public Transport","09/05/2017"
"Wolverhampton City Council","http://opendatacommunities.org/id/metropolitan-district-council/wolverhampton","WM MORRISONS","35.01","Upper Pendeford Farm Childrens Home","5411","Provisions (Not for resale)","09/05/2017"
"Wolverhampton City Council","http://opendatacommunities.org/id/metropolitan-district-council/wolverhampton","Trainline","59.67","LAC Transitions Team","4112","Client Transport","09/05/2017"
"Wolverhampton City Council","http://opendatacommunities.org/id/metropolitan-district-council/wolverhampton","WOLVERHAMPTON CC","2.50","Headstart Phase 3","7523","Parking Fees","09/05/2017"
"Wolverhampton City Council","http://opendatacommunities.org/id/metropolitan-district-council/wolverhampton","Amazon UK Marketplace","4.32","Towers Outdoor Education Centre","5942","Fixtures and Fittings - Purchases","09/05/2017"
"Wolverhampton City Council","http://opendatacommunities.org/id/metropolitan-district-council/wolverhampton","NORTHERN POTTERY LTD","44.04","Towers Outdoor Education Centre","5999","Fixtures and Fittings - Purchases","09/05/2017"
"Wolverhampton City Council","http://opendatacommunities.org/id/metropolitan-district-council/wolverhampton","C L JONES LIMITED","50.96","Towers Outdoor Education Centre","5211","Fixtures and Fittings - Purchases","09/05/2017"
"Wolverhampton City Council","http://opendatacommunities.org/id/metropolitan-district-council/wolverhampton","Amazon EU","44.25","Learning Technologies","5969","Equipment - Purchase","09/05/2017"
"Wolverhampton City Council","http://opendatacommunities.org/id/metropolitan-district-council/wolverhampton","Virgintrains.co.uk","-52.00","Revenues","4112","Public Transport","09/05/2017"
"Wolverhampton City Council","http://opendatacommunities.org/id/metropolitan-district-council/wolverhampton","MARKS&SPENCER PLC SACA","24.40","Mayoral Expenses","5411","Hospitality","09/05/2017"
"Wolverhampton City Council","http://opendatacommunities.org/id/metropolitan-district-council/wolverhampton","BRITANNIA WOLVERHA","-266.00","Assessment Team (West)","7011","Accommodation Costs","09/05/2017"
"Wolverhampton City Council","http://opendatacommunities.org/id/metropolitan-district-council/wolverhampton","BRITANNIA","266.00","Assessment Team (West)","7011","Accommodation Costs","09/05/2017"
"Wolverhampton City Council","http://opendatacommunities.org/id/metropolitan-district-council/wolverhampton","SANDWELL MBC/INET","10.00","Adoption and Residence Team & Allowances","9399","Services - Fees and Charges","09/05/2017"
"Wolverhampton City Council","http://opendatacommunities.org/id/metropolitan-district-council/wolverhampton","Trainline","162.38","Adoption and Residence Team & Allowances","4112","Public Transport","09/05/2017"
"Wolverhampton City Council","http://opendatacommunities.org/id/metropolitan-district-council/wolverhampton","MNA LTD CARDCHARGE","247.34","Licensing - General","5994","Services - Fees and Charges","09/05/2017"
"Wolverhampton City Council","http://opendatacommunities.org/id/metropolitan-district-council/wolverhampton","SPECSAVERSEVOUGB-","850.00","Eye Test Vouchers (HR)","8043","Medical Fees","09/05/2017"
"Wolverhampton City Council","http://opendatacommunities.org/id/metropolitan-district-council/wolverhampton","WOLVERHAMPTON TROPHY C","72.50","Education Business Partnership","5999","Equipment - Purchase","09/05/2017"
"Wolverhampton City Council","http://opendatacommunities.org/id/metropolitan-district-council/wolverhampton","Amazon UK Marketplace","97.98","Learning Technologies","5942","Computing - Purchase of Hardware","09/05/2017"
"Wolverhampton City Council","http://opendatacommunities.org/id/metropolitan-district-council/wolverhampton","Amazon UK Marketplace","94.95","Learning Technologies","5942","Computing - Purchase of Hardware","09/05/2017"
"Wolverhampton City Council","http://opendatacommunities.org/id/metropolitan-district-council/wolverhampton","ARGOS LTD","67.92","LAC Transitions Team","5310","Client Allowances","09/05/2017"
"Wolverhampton City Council","http://opendatacommunities.org/id/metropolitan-district-council/wolverhampton","ASDA HOME SHOPPING","85.31","Ernest Bold Court","5411","Provisions (Not for resale)","09/05/2017"
"Wolverhampton City Council","http://opendatacommunities.org/id/metropolitan-district-council/wolverhampton","EB  WWBF MAY 2017 EVEN","5.00","Economic Development","7399","Conference Expenses","09/05/2017"
"Wolverhampton City Council","http://opendatacommunities.org/id/metropolitan-district-council/wolverhampton","CARVER/WOLVERHAMPTON/L","21.47","Education Catering - General Overheads","5211","Materials","09/05/2017"
"Wolverhampton City Council","http://opendatacommunities.org/id/metropolitan-district-council/wolverhampton","REGISTRARS OFFICE","50.00","Head of Service - CINCP","8299","Services - Professional Fees","09/05/2017"
"Wolverhampton City Council","http://opendatacommunities.org/id/metropolitan-district-council/wolverhampton","WWW.GOV.UK","10.00","Legal Services","8999","Services - Professional Fees","09/05/2017"
"Wolverhampton City Council","http://opendatacommunities.org/id/metropolitan-district-council/wolverhampton","G & M HALE (SUNDRIES)","18.60","Discretionary Fund","5992","Materials","09/05/2017"
"Wolverhampton City Council","http://opendatacommunities.org/id/metropolitan-district-council/wolverhampton","G & M HALE LTD","160.45","Discretionary Fund","5992","Materials","09/05/2017"
"Wolverhampton City Council","http://opendatacommunities.org/id/metropolitan-district-council/wolverhampton","G & M HALE LTD","41.25","Discretionary Fund","5992","Materials","09/05/2017"
"Wolverhampton City Council","http://opendatacommunities.org/id/metropolitan-district-council/wolverhampton","THE POPPY APPEAL","222.00","Mayoral Expenses","8398","Hospitality","09/05/2017"
"Wolverhampton City Council","http://opendatacommunities.org/id/metropolitan-district-council/wolverhampton","Virgin Trains","59.05","Fostering Team & Allowances","4112","Public Transport","08/05/2017"
"Wolverhampton City Council","http://opendatacommunities.org/id/metropolitan-district-council/wolverhampton","WICKES","200.50","Northicote Farm","5211","Materials","08/05/2017"
"Wolverhampton City Council","http://opendatacommunities.org/id/metropolitan-district-council/wolverhampton","BRITANNIA","40.50","Assessment Team (West)","7011","Accommodation Costs","08/05/2017"
"Wolverhampton City Council","http://opendatacommunities.org/id/metropolitan-district-council/wolverhampton","GO CARZ","19.51","EIP Locality 5","4121","Client Transport","08/05/2017"
"Wolverhampton City Council","http://opendatacommunities.org/id/metropolitan-district-council/wolverhampton","GO CARZ","24.23","EIP Locality 5","4121","Client Transport","08/05/2017"
"Wolverhampton City Council","http://opendatacommunities.org/id/metropolitan-district-council/wolverhampton","AMAZON UK RETAIL AMAZO","28.35","EIP Locality 5","5999","Equipment - Purchase","08/05/2017"
"Wolverhampton City Council","http://opendatacommunities.org/id/metropolitan-district-council/wolverhampton","WAYFAIR STORES LIM","109.99","EIP Locality 5","5965","Grant Payments","08/05/2017"
"Wolverhampton City Council","http://opendatacommunities.org/id/metropolitan-district-council/wolverhampton","Amazon UK Marketplace","11.40","EIP Locality 5","5942","Books","08/05/2017"
"Wolverhampton City Council","http://opendatacommunities.org/id/metropolitan-district-council/wolverhampton","BRITANNIA","147.50","CIN/CP Social Work Unit - Area 2","7011","Section 17","08/05/2017"
"Wolverhampton City Council","http://opendatacommunities.org/id/metropolitan-district-council/wolverhampton","Trainline","66.66","CIN/CP Social Work Unit - Area 2","4112","Section 17","08/05/2017"
"Wolverhampton City Council","http://opendatacommunities.org/id/metropolitan-district-council/wolverhampton","Trainline","73.80","CIN/CP Social Work Unit - Area 2","4112","Section 17","08/05/2017"
"Wolverhampton City Council","http://opendatacommunities.org/id/metropolitan-district-council/wolverhampton","E00783400000000","10.00","EIP Locality 1","6011","Financial Assistance In Exceptional Circ","08/05/2017"
"Wolverhampton City Council","http://opendatacommunities.org/id/metropolitan-district-council/wolverhampton","WWW.OFFICEFURNITUREONL","284.40","EIP Locality 1","5712","Equipment - Purchase","08/05/2017"
"Wolverhampton City Council","http://opendatacommunities.org/id/metropolitan-district-council/wolverhampton","Amazon UK Marketplace","2.71","Towers Outdoor Education Centre","5942","Equipment - Purchase","08/05/2017"
"Wolverhampton City Council","http://opendatacommunities.org/id/metropolitan-district-council/wolverhampton","Amazon UK Marketplace","14.99","Technical Support","5942","Computing - Purchase of Hardware","08/05/2017"
"Wolverhampton City Council","http://opendatacommunities.org/id/metropolitan-district-council/wolverhampton","BRTMKT DBA FastSpring","1369.90","Technical Support","5818","Computing - Purchase of Software","08/05/2017"
"Wolverhampton City Council","http://opendatacommunities.org/id/metropolitan-district-council/wolverhampton","Amazon UK Marketplace","4.79","Global Budgets","5942","Books","08/05/2017"
"Wolverhampton City Council","http://opendatacommunities.org/id/metropolitan-district-council/wolverhampton","SCREWFIX DIRECT LT","16.66","Community Enablement","5211","Equipment - R & M","08/05/2017"
"Wolverhampton City Council","http://opendatacommunities.org/id/metropolitan-district-council/wolverhampton","ASDA HOME SHOPPING","96.83","Ernest Bold Court","5411","Provisions (Not for resale)","08/05/2017"
"Wolverhampton City Council","http://opendatacommunities.org/id/metropolitan-district-council/wolverhampton","AMAZON UK RETAIL AMAZO","47.99","Inclusion Support","5999","Equipment - Purchase","08/05/2017"
"Wolverhampton City Council","http://opendatacommunities.org/id/metropolitan-district-council/wolverhampton","ALDI","21.46","Admin & Support","5411","Stationery","08/05/2017"
"Wolverhampton City Council","http://opendatacommunities.org/id/metropolitan-district-council/wolverhampton","CT HOME WEDNESFIELD","139.58","EIP Locality 4","8398","Services - Supplies & Services to users","08/05/2017"
"Wolverhampton City Council","http://opendatacommunities.org/id/metropolitan-district-council/wolverhampton","PREMIER INN","382.92","Adoption and Residence Team & Allowances","3811","Services - Supplies & Services to users","08/05/2017"
"Wolverhampton City Council","http://opendatacommunities.org/id/metropolitan-district-council/wolverhampton","Trainline","207.06","Business Manager - Place","4112","Public Transport","08/05/2017"
"Wolverhampton City Council","http://opendatacommunities.org/id/metropolitan-district-council/wolverhampton","bookatable","15.00","Headstart Phase 3","5817","Computing - Purchase of Software","08/05/2017"
"Wolverhampton City Council","http://opendatacommunities.org/id/metropolitan-district-council/wolverhampton","ARVATO FINANCIAL","67.63","Document Centre - General","8999","Services - Professional Fees","08/05/2017"
"Wolverhampton City Council","http://opendatacommunities.org/id/metropolitan-district-council/wolverhampton","Amazon UK Marketplace","565.77","Strategic ICTS (ICT Serv Budget)","5942","Books","08/05/2017"
"Wolverhampton City Council","http://opendatacommunities.org/id/metropolitan-district-council/wolverhampton","Amazon UK Marketplace","305.58","Strategic ICTS (ICT Serv Budget)","5942","Books","08/05/2017"
"Wolverhampton City Council","http://opendatacommunities.org/id/metropolitan-district-council/wolverhampton","Amazon UK Marketplace","289.98","Strategic ICTS (ICT Serv Budget)","5942","Books","08/05/2017"
"Wolverhampton City Council","http://opendatacommunities.org/id/metropolitan-district-council/wolverhampton","ASDA HOME SHOPPING","333.61","Upper Pendeford Farm Childrens Home","5411","Provisions (Not for resale)","08/05/2017"
"Wolverhampton City Council","http://opendatacommunities.org/id/metropolitan-district-council/wolverhampton","WHSMITH.CO.UK","41.62","Central Costs","5965","Equipment - Purchase","08/05/2017"
"Wolverhampton City Council","http://opendatacommunities.org/id/metropolitan-district-council/wolverhampton","Amazon UK Marketplace","44.56","Headstart Phase 3","5942","Equipment - Purchase","08/05/2017"
"Wolverhampton City Council","http://opendatacommunities.org/id/metropolitan-district-council/wolverhampton","BRITANNIA","21.25","CIN/CP Social Work Unit - Area 2","7011","Section 17","08/05/2017"
"Wolverhampton City Council","http://opendatacommunities.org/id/metropolitan-district-council/wolverhampton","BRITANNIA","30.83","CIN/CP Social Work Unit - Area 2","7011","Section 17","08/05/2017"
"Wolverhampton City Council","http://opendatacommunities.org/id/metropolitan-district-council/wolverhampton","WWW.ARGOS.CO.UK","149.99","CIN/CP Social Work Unit - Area 6","5310","Equipment - Purchase","08/05/2017"
"Wolverhampton City Council","http://opendatacommunities.org/id/metropolitan-district-council/wolverhampton","B&M RETAIL","191.55","LAC Transitions Team","5310","Client Allowances","08/05/2017"
"Wolverhampton City Council","http://opendatacommunities.org/id/metropolitan-district-council/wolverhampton","CIEH","284.00","Central Training","8699","Training Expenses","08/05/2017"
"Wolverhampton City Council","http://opendatacommunities.org/id/metropolitan-district-council/wolverhampton","Amazon UK Marketplace","2.29","Legal Services","5942","Stationery","08/05/2017"
"Wolverhampton City Council","http://opendatacommunities.org/id/metropolitan-district-council/wolverhampton","GRO HM PASSPORT OFFICE","-23.40","Head of Service - CINCP","9399","Services - Professional Fees","08/05/2017"
"Wolverhampton City Council","http://opendatacommunities.org/id/metropolitan-district-council/wolverhampton","GRO HM PASSPORT OFFICE","-23.40","Head of Service - CINCP","9399","Services - Professional Fees","08/05/2017"
"Wolverhampton City Council","http://opendatacommunities.org/id/metropolitan-district-council/wolverhampton","POUNDWORLD RETAIL","25.83","Children & Family Contact Services","5310","Cleaning Supplies and Materials","08/05/2017"
"Wolverhampton City Council","http://opendatacommunities.org/id/metropolitan-district-council/wolverhampton","ICELAND","7.55","Children & Family Contact Services","5411","Provisions (Not for resale)","08/05/2017"
"Wolverhampton City Council","http://opendatacommunities.org/id/metropolitan-district-council/wolverhampton","PETS AT HOME LTD","7.92","Children & Family Contact Services","5995","Equipment - Purchase","08/05/2017"
"Wolverhampton City Council","http://opendatacommunities.org/id/metropolitan-district-council/wolverhampton","ALDI","7.90","Children & Family Contact Services","5411","Cleaning Supplies and Materials","08/05/2017"
"Wolverhampton City Council","http://opendatacommunities.org/id/metropolitan-district-council/wolverhampton","HMCOURTS-SERVICE.G","20.00","Mental Health Assessment & Care Mgmt","9222","Services - Fees and Charges","08/05/2017"
"Wolverhampton City Council","http://opendatacommunities.org/id/metropolitan-district-council/wolverhampton","WWW.DUNNS.CO.UK","6.52","Mayoral Expenses","7333","Printing","08/05/2017"
"Wolverhampton City Council","http://opendatacommunities.org/id/metropolitan-district-council/wolverhampton","GO CARZ","5.68","Legal Services","4121","Public Transport","05/05/2017"
"Wolverhampton City Council","http://opendatacommunities.org/id/metropolitan-district-council/wolverhampton","GRO HM PASSPORT OFFICE","46.80","Head of Service - CINCP","9399","Services - Professional Fees","05/05/2017"
"Wolverhampton City Council","http://opendatacommunities.org/id/metropolitan-district-council/wolverhampton","G & M HALE (SUNDRIES)","69.20","Creative Studies Delivery Area","5992","Materials","05/05/2017"
"Wolverhampton City Council","http://opendatacommunities.org/id/metropolitan-district-council/wolverhampton","G & M HALE LTD","96.50","Discretionary Fund","5992","Materials","05/05/2017"
"Wolverhampton City Council","http://opendatacommunities.org/id/metropolitan-district-council/wolverhampton","AMAZON UK RETAIL AMAZO","13.84","EIP Locality 5","5999","Financial Assistance In Exceptional Circ","05/05/2017"
"Wolverhampton City Council","http://opendatacommunities.org/id/metropolitan-district-council/wolverhampton","CORNEY & BARROW FLEET","7.99","Delivery & OCE Development","5813","Catering","05/05/2017"
"Wolverhampton City Council","http://opendatacommunities.org/id/metropolitan-district-council/wolverhampton","WWW.CGPBOOKS.CO.UK","26.25","EIP Locality 7","5999","Grant Payments","05/05/2017"
"Wolverhampton City Council","http://opendatacommunities.org/id/metropolitan-district-council/wolverhampton","RS COMPONENTS","4.81","Charlotte Hodes","5065","Equipment - R & M","05/05/2017"
"Wolverhampton City Council","http://opendatacommunities.org/id/metropolitan-district-council/wolverhampton","LION PICTURE FRAMING S","378.49","Maintenance of Exhibits","5999","Equipment - Purchase","05/05/2017"
"Wolverhampton City Council","http://opendatacommunities.org/id/metropolitan-district-council/wolverhampton","Trainline","94.45","Health Protection & NHS Facing","4112","Public Transport","05/05/2017"
"Wolverhampton City Council","http://opendatacommunities.org/id/metropolitan-district-council/wolverhampton","HM PASSPORT OFFICE","62.92","LAC Transitions Team","9399","Client Allowances","05/05/2017"
"Wolverhampton City Council","http://opendatacommunities.org/id/metropolitan-district-council/wolverhampton","REGISTRARS OFFICE","10.00","Adoption and Residence Team & Allowances","8299","Services - Translation fees","05/05/2017"
"Wolverhampton City Council","http://opendatacommunities.org/id/metropolitan-district-council/wolverhampton","Virgin Trains","194.00","Adoption and Residence Team & Allowances","4112","Public Transport","05/05/2017"
"Wolverhampton City Council","http://opendatacommunities.org/id/metropolitan-district-council/wolverhampton","Trainline","116.59","Strategic Asset Management Team","4112","Public Transport","05/05/2017"
"Wolverhampton City Council","http://opendatacommunities.org/id/metropolitan-district-council/wolverhampton","MARKS&SPENCER PLC","157.00","Headstart Phase 3","5411","Catering","05/05/2017"
"Wolverhampton City Council","http://opendatacommunities.org/id/metropolitan-district-council/wolverhampton","WWW.MAPLIN.CO.UK","74.99","Headstart Phase 3","5732","Equipment - Purchase","05/05/2017"
"Wolverhampton City Council","http://opendatacommunities.org/id/metropolitan-district-council/wolverhampton","HOME BARGAINS","8.32","LAC Transitions Team","5251","Independant Living Allowance","05/05/2017"
"Wolverhampton City Council","http://opendatacommunities.org/id/metropolitan-district-council/wolverhampton","IKEA LIMITED","25.00","LAC Transitions Team","5712","Independant Living Allowance","05/05/2017"
"Wolverhampton City Council","http://opendatacommunities.org/id/metropolitan-district-council/wolverhampton","WOLVERHAMPTON CC","4.58","Headstart Phase 3","7523","Parking Fees","05/05/2017"
"Wolverhampton City Council","http://opendatacommunities.org/id/metropolitan-district-council/wolverhampton","Amazon Prime","7.99","Wolverhampton Indoor and Open Market","5968","Subscriptions","05/05/2017"
"Wolverhampton City Council","http://opendatacommunities.org/id/metropolitan-district-council/wolverhampton","ARGOS LTD","29.99","CIN/CP Social Work Unit - Area 2","5310","Section 17","05/05/2017"
"Wolverhampton City Council","http://opendatacommunities.org/id/metropolitan-district-council/wolverhampton","ASDA SUPERSTORE","3.89","Mayoral Expenses","5411","Hospitality","05/05/2017"
"Wolverhampton City Council","http://opendatacommunities.org/id/metropolitan-district-council/wolverhampton","POUNDLAND LTD 1463","5.00","Mayoral Expenses","5310","Stationery","05/05/2017"
"Wolverhampton City Council","http://opendatacommunities.org/id/metropolitan-district-council/wolverhampton","NATWEST BANK","100.00","Childrens with Disabilities Team","6011","Financial Assistance In Exceptional Circ","05/05/2017"
"Wolverhampton City Council","http://opendatacommunities.org/id/metropolitan-district-council/wolverhampton","NATWEST BANK","250.00","Childrens with Disabilities Team","6011","Financial Assistance In Exceptional Circ","05/05/2017"
"Wolverhampton City Council","http://opendatacommunities.org/id/metropolitan-district-council/wolverhampton","HMCOURTS-SERVICE.G","20.00","LAC Transitions Team","9222","Client Allowances","05/05/2017"
"Wolverhampton City Council","http://opendatacommunities.org/id/metropolitan-district-council/wolverhampton","SCREWFIX DIRECT LT","35.41","Civic Centre","5211","Equipment - Purchase","05/05/2017"
"Wolverhampton City Council","http://opendatacommunities.org/id/metropolitan-district-council/wolverhampton","BOOKWHEN","9.00","Craftplay","7372","Computing - Purchase of Software","05/05/2017"
"Wolverhampton City Council","http://opendatacommunities.org/id/metropolitan-district-council/wolverhampton","Amazon UK Marketplace","3.24","Towers Outdoor Education Centre","5942","Equipment - Purchase","05/05/2017"
"Wolverhampton City Council","http://opendatacommunities.org/id/metropolitan-district-council/wolverhampton","Amazon UK Marketplace","11.22","Towers Outdoor Education Centre","5942","Equipment - Purchase","05/05/2017"
"Wolverhampton City Council","http://opendatacommunities.org/id/metropolitan-district-council/wolverhampton","Virgin Trains","7.60","Children & Young People Support Costs","4112","Public Transport","05/05/2017"
"Wolverhampton City Council","http://opendatacommunities.org/id/metropolitan-district-council/wolverhampton","Wix.com","186.26","Technical Support","5817","Computing - Purchase of Software","05/05/2017"
"Wolverhampton City Council","http://opendatacommunities.org/id/metropolitan-district-council/wolverhampton","Amazon UK Marketplace","6.75","Global Budgets","5942","Books","05/05/2017"
"Wolverhampton City Council","http://opendatacommunities.org/id/metropolitan-district-council/wolverhampton","SAINSBURYS SACAT 2040","4.00","Ernest Bold Court","5411","Provisions (Not for resale)","05/05/2017"
"Wolverhampton City Council","http://opendatacommunities.org/id/metropolitan-district-council/wolverhampton","WAYFAIR STORES LIM","74.98","CIN/CP Social Work Unit - Area 5","5965","Equipment - Purchase","05/05/2017"
"Wolverhampton City Council","http://opendatacommunities.org/id/metropolitan-district-council/wolverhampton","Trainline","70.69","Strategic Director Place","4112","Public Transport","05/05/2017"
"Wolverhampton City Council","http://opendatacommunities.org/id/metropolitan-district-council/wolverhampton","CIEH","284.00","Central Training","8699","Training Expenses","05/05/2017"
"Wolverhampton City Council","http://opendatacommunities.org/id/metropolitan-district-council/wolverhampton","WWW.PANELWAREHOUSE.COM","89.98","Welfare Rights","7399","Equipment - Purchase","05/05/2017"
"Wolverhampton City Council","http://opendatacommunities.org/id/metropolitan-district-council/wolverhampton","ADVANTIS CREDIT - MOTO","96.08","CIN/CP Social Work Unit - Area 4","7299","Water Charges","04/05/2017"
"Wolverhampton City Council","http://opendatacommunities.org/id/metropolitan-district-council/wolverhampton","REGISTRARS OFFICE","11.00","CIN/CP Social Work Unit - Area 7","8299","Training Expenses","04/05/2017"
"Wolverhampton City Council","http://opendatacommunities.org/id/metropolitan-district-council/wolverhampton","SSE","116.95","CIN/CP Social Work Unit - Area 5","4900","Electricity","04/05/2017"
"Wolverhampton City Council","http://opendatacommunities.org/id/metropolitan-district-council/wolverhampton","GRO HM PASSPORT OFFICE","23.40","CIN/CP Social Work Unit - Area 8","9399","Services - Professional Fees","04/05/2017"
"Wolverhampton City Council","http://opendatacommunities.org/id/metropolitan-district-council/wolverhampton","BRITANNIA","151.00","Assessment Team (West)","7011","Accommodation Costs","04/05/2017"
"Wolverhampton City Council","http://opendatacommunities.org/id/metropolitan-district-council/wolverhampton","BRITANNIA","30.00","Assessment Team (West)","7011","Accommodation Costs","04/05/2017"
"Wolverhampton City Council","http://opendatacommunities.org/id/metropolitan-district-council/wolverhampton","Amazon UK Marketplace","19.98","EIP Locality 5","5942","Books","04/05/2017"
"Wolverhampton City Council","http://opendatacommunities.org/id/metropolitan-district-council/wolverhampton","WCT CATERING","9.90","Delivery & OCE Development","4112","Catering","04/05/2017"
"Wolverhampton City Council","http://opendatacommunities.org/id/metropolitan-district-council/wolverhampton","Trainline","85.32","CIN/CP Social Work Unit - Area 4","4112","Public Transport","04/05/2017"
"Wolverhampton City Council","http://opendatacommunities.org/id/metropolitan-district-council/wolverhampton","CT HOME WEDNESFIELD","92.50","CIN/CP Social Work Unit - Area 4","8398","Services - Supplies & Services to users","04/05/2017"
"Wolverhampton City Council","http://opendatacommunities.org/id/metropolitan-district-council/wolverhampton","Amazon UK Marketplace","10.04","Global Budgets","5942","Books","04/05/2017"
"Wolverhampton City Council","http://opendatacommunities.org/id/metropolitan-district-council/wolverhampton","Amazon UK Marketplace","26.70","Global Budgets","5942","Books","04/05/2017"
"Wolverhampton City Council","http://opendatacommunities.org/id/metropolitan-district-council/wolverhampton","HM PASSPORT OFFICE","46.00","LAC Team","9399","Financial Assistance In Exceptional Circ","04/05/2017"
"Wolverhampton City Council","http://opendatacommunities.org/id/metropolitan-district-council/wolverhampton","HM PASSPORT OFFICE","46.00","LAC Team","9399","Financial Assistance In Exceptional Circ","04/05/2017"
"Wolverhampton City Council","http://opendatacommunities.org/id/metropolitan-district-council/wolverhampton","W M MORRISON PLC","68.98","Ernest Bold Court","5411","Provisions (Not for resale)","04/05/2017"
"Wolverhampton City Council","http://opendatacommunities.org/id/metropolitan-district-council/wolverhampton","WWW.VIKING-DIRECT.CO.U","52.47","Community Enablement","5111","Stationery","04/05/2017"
"Wolverhampton City Council","http://opendatacommunities.org/id/metropolitan-district-council/wolverhampton","WWW.VIKING-DIRECT.CO.U","34.98","Ernest Bold Court","5111","Stationery","04/05/2017"
"Wolverhampton City Council","http://opendatacommunities.org/id/metropolitan-district-council/wolverhampton","WWW.VIKING-DIRECT.CO.U","104.94","Duke Street Bungalows","5111","Stationery","04/05/2017"
"Wolverhampton City Council","http://opendatacommunities.org/id/metropolitan-district-council/wolverhampton","SEVERN TRENT WATER","126.75","CIN/CP Social Work Unit - Area 4","4900","Water Charges","04/05/2017"
"Wolverhampton City Council","http://opendatacommunities.org/id/metropolitan-district-council/wolverhampton","ROYAL BK OF SCOTLAND","150.00","Headstart Phase 3","6011","Financial Assistance In Exceptional Circ","04/05/2017"
"Wolverhampton City Council","http://opendatacommunities.org/id/metropolitan-district-council/wolverhampton","BLACK COUNTRY SKIP HIR","91.25","LAC Transitions Team","7394","Client Allowances","04/05/2017"
"Wolverhampton City Council","http://opendatacommunities.org/id/metropolitan-district-council/wolverhampton","WILKO RETAIL LIMIT","7.50","Delivery & OCE Development","5722","Equipment - Purchase","04/05/2017"
"Wolverhampton City Council","http://opendatacommunities.org/id/metropolitan-district-council/wolverhampton","E01510300000000","40.00","Emergency Duty Team","6011","Financial Assistance In Exceptional Circ","04/05/2017"
"Wolverhampton City Council","http://opendatacommunities.org/id/metropolitan-district-council/wolverhampton","WM MORRISONS","8.80","Upper Pendeford Farm Childrens Home","5411","Provisions (Not for resale)","04/05/2017"
"Wolverhampton City Council","http://opendatacommunities.org/id/metropolitan-district-council/wolverhampton","WILKO RETAIL LIMIT","15.55","Central Costs","5722","Equipment - Purchase","04/05/2017"
"Wolverhampton City Council","http://opendatacommunities.org/id/metropolitan-district-council/wolverhampton","SIGNET SIGNS LIMITED","23.47","General Election","7333","Equipment - Purchase","04/05/2017"
"Wolverhampton City Council","http://opendatacommunities.org/id/metropolitan-district-council/wolverhampton","ROYAL BK OF SCOTLAND","300.00","B-Safe","6011","Educ Trips, Holidays, Outings, Activity","04/05/2017"
"Wolverhampton City Council","http://opendatacommunities.org/id/metropolitan-district-council/wolverhampton","Trainline","26.01","Safeguarding Admin Resource","4112","Public Transport","04/05/2017"
"Wolverhampton City Council","http://opendatacommunities.org/id/metropolitan-district-council/wolverhampton","Amazon UK Marketplace","15.68","EIP Locality 1","5942","Books","04/05/2017"
"Wolverhampton City Council","http://opendatacommunities.org/id/metropolitan-district-council/wolverhampton","Amazon UK Marketplace","10.96","EIP Locality 1","5942","Computing - Consumables","04/05/2017"
"Wolverhampton City Council","http://opendatacommunities.org/id/metropolitan-district-council/wolverhampton","Amazon UK Marketplace","12.98","Global Budgets","5942","Books","04/05/2017"
"Wolverhampton City Council","http://opendatacommunities.org/id/metropolitan-district-council/wolverhampton","WOLVERHAMPTON ART","5.20","Contemporary Gallery","8299","Subsistence","03/05/2017"
"Wolverhampton City Council","http://opendatacommunities.org/id/metropolitan-district-council/wolverhampton","GOOGLE  SVCSAPPS_wolve","6.05","Civic Halls Non Direct Management A/C","5968","Subscriptions","03/05/2017"
"Wolverhampton City Council","http://opendatacommunities.org/id/metropolitan-district-council/wolverhampton","G & M HALE (SUNDRIES)","46.00","Creative Studies Delivery Area","5992","Materials for resale","03/05/2017"
"Wolverhampton City Council","http://opendatacommunities.org/id/metropolitan-district-council/wolverhampton","G & M HALE LTD","48.40","Creative Studies Delivery Area","5992","Materials for resale","03/05/2017"
"Wolverhampton City Council","http://opendatacommunities.org/id/metropolitan-district-council/wolverhampton","EXPEDIA 7263306550603","186.82","CIN/CP Social Work Unit - Area 4","4722","Accommodation Costs","03/05/2017"
"Wolverhampton City Council","http://opendatacommunities.org/id/metropolitan-district-council/wolverhampton","Virgin Trains","52.00","Revenues","4112","Public Transport","03/05/2017"
"Wolverhampton City Council","http://opendatacommunities.org/id/metropolitan-district-council/wolverhampton","Virgin Trains","52.00","Revenues","4112","Public Transport","03/05/2017"
"Wolverhampton City Council","http://opendatacommunities.org/id/metropolitan-district-council/wolverhampton","ASDA SUPERSTORE","4.01","EIP Locality 5","5411","Provisions (Not for resale)","03/05/2017"
"Wolverhampton City Council","http://opendatacommunities.org/id/metropolitan-district-council/wolverhampton","AMZ UK Digital Dwnload","548.79","Landscape","5735","Computing - Purchase of Software","03/05/2017"
"Wolverhampton City Council","http://opendatacommunities.org/id/metropolitan-district-council/wolverhampton","DERBY C CNCL TEL PAYME","11.20","Adoption and Residence Team & Allowances","9399","Services - Fees and Charges","03/05/2017"
"Wolverhampton City Council","http://opendatacommunities.org/id/metropolitan-district-council/wolverhampton","POST OFFICE COUNTER","2.67","Adoption and Residence Team & Allowances","9402","Comms - Postage","03/05/2017"
"Wolverhampton City Council","http://opendatacommunities.org/id/metropolitan-district-council/wolverhampton","WWW.NORTHEASTROOFRACKS","84.93","Towers Outdoor Education Centre","5533","Equipment - Purchase","03/05/2017"
"Wolverhampton City Council","http://opendatacommunities.org/id/metropolitan-district-council/wolverhampton","E01510300000000","20.00","Delivery & OCE Development","6011","Financial Assistance In Exceptional Circ","03/05/2017"
"Wolverhampton City Council","http://opendatacommunities.org/id/metropolitan-district-council/wolverhampton","WOLVERHAMPTON CC","2.50","Headstart Phase 3","7523","Parking Fees","03/05/2017"
"Wolverhampton City Council","http://opendatacommunities.org/id/metropolitan-district-council/wolverhampton","BRITANNIA","101.67","CIN/CP Social Work Unit - Area 2","7011","Section 17","03/05/2017"
"Wolverhampton City Council","http://opendatacommunities.org/id/metropolitan-district-council/wolverhampton","ASDA STORES","23.33","CIN/CP Social Work Unit - Area 2","5411","No Recourse to Public Funds","03/05/2017"
"Wolverhampton City Council","http://opendatacommunities.org/id/metropolitan-district-council/wolverhampton","ARGOS LTD","46.47","CIN/CP Social Work Unit - Area 2","5310","No Recourse to Public Funds","03/05/2017"
"Wolverhampton City Council","http://opendatacommunities.org/id/metropolitan-district-council/wolverhampton","Trainline","83.84","CIN/CP Social Work Unit - Area 2","4112","Section 17","03/05/2017"
"Wolverhampton City Council","http://opendatacommunities.org/id/metropolitan-district-council/wolverhampton","E00192600000000","30.00","EIP Locality 1","6011","Subsistence","03/05/2017"
"Wolverhampton City Council","http://opendatacommunities.org/id/metropolitan-district-council/wolverhampton","TESCO STORES 5194","150.44","Towers Outdoor Education Centre","5411","Provisions (Not for resale)","03/05/2017"
"Wolverhampton City Council","http://opendatacommunities.org/id/metropolitan-district-council/wolverhampton","PAYPAL  123REGLIMIT","7.99","Technical Support","4816","Computing - Purchase of Software","03/05/2017"
"Wolverhampton City Council","http://opendatacommunities.org/id/metropolitan-district-council/wolverhampton","Amazon UK Marketplace","9.72","Global Budgets","5942","Books","03/05/2017"
"Wolverhampton City Council","http://opendatacommunities.org/id/metropolitan-district-council/wolverhampton","Amazon UK Marketplace","31.69","Global Budgets","5942","Books","03/05/2017"
"Wolverhampton City Council","http://opendatacommunities.org/id/metropolitan-district-council/wolverhampton","WOLVERHAMPTON ART","7.30","Curatorial - Cultural Learning","8299","Subsistence","03/05/2017"
"Wolverhampton City Council","http://opendatacommunities.org/id/metropolitan-district-council/wolverhampton","W M MORRISON PLC","15.30","Ernest Bold Court","5411","Provisions (Not for resale)","03/05/2017"
"Wolverhampton City Council","http://opendatacommunities.org/id/metropolitan-district-council/wolverhampton","THE RANGE","14.99","Ernest Bold Court","5311","Equipment - Purchase","03/05/2017"
"Wolverhampton City Council","http://opendatacommunities.org/id/metropolitan-district-council/wolverhampton","WILKO RETAIL LIMIT","18.55","Admin & Support","5722","Equipment - Purchase","03/05/2017"
"Wolverhampton City Council","http://opendatacommunities.org/id/metropolitan-district-council/wolverhampton","LOYD WEDNESFIELD WOLVE","200.00","EIP Locality 8","6011","Grant Payments","03/05/2017"
"Wolverhampton City Council","http://opendatacommunities.org/id/metropolitan-district-council/wolverhampton","WALLPAPER WAREHOUSE","7.50","Cemeteries","5231","Materials","03/05/2017"
"Wolverhampton City Council","http://opendatacommunities.org/id/metropolitan-district-council/wolverhampton","SCREWFIX DIRECT LT","35.39","Cemeteries","5211","Materials","03/05/2017"
"Wolverhampton City Council","http://opendatacommunities.org/id/metropolitan-district-council/wolverhampton","ASDA STORES 4452","20.00","Headstart Phase 3","5411","Comms - Telephone Call charges","03/05/2017"
"Wolverhampton City Council","http://opendatacommunities.org/id/metropolitan-district-council/wolverhampton","123-REG.CO.UK","335.70","Strategic ICTS (ICT Serv Budget)","4816","Computing - Purchase of Software","03/05/2017"
"Wolverhampton City Council","http://opendatacommunities.org/id/metropolitan-district-council/wolverhampton","SCREWFIX DIRECT","76.08","Parkfields Centre","5211","Materials","03/05/2017"
"Wolverhampton City Council","http://opendatacommunities.org/id/metropolitan-district-council/wolverhampton","HIGHFIELD HOUSE HO","385.00","CIN/CP Social Work Unit - Area 3","7011","No Recourse to Public Funds","03/05/2017"
"Wolverhampton City Council","http://opendatacommunities.org/id/metropolitan-district-council/wolverhampton","WEST COAST TRAINS","388.00","CIN/CP Social Work Unit - Area 3","4112","Public Transport","03/05/2017"
"Wolverhampton City Council","http://opendatacommunities.org/id/metropolitan-district-council/wolverhampton","COMPTON HOSPICE TRDG L","67.00","CIN/CP Social Work Unit - Area 3","5712","Equipment - Purchase","03/05/2017"
"Wolverhampton City Council","http://opendatacommunities.org/id/metropolitan-district-council/wolverhampton","E01510300000000","140.00","Emergency Duty Team","6011","Financial Assistance In Exceptional Circ","03/05/2017"
"Wolverhampton City Council","http://opendatacommunities.org/id/metropolitan-district-council/wolverhampton","W M MORRISONS.COM","75.64","Discretionary Fund","5411","Materials","03/05/2017"
"Wolverhampton City Council","http://opendatacommunities.org/id/metropolitan-district-council/wolverhampton","WM MORRISON 024","3.00","Ernest Bold Court","5411","Provisions (Not for resale)","02/05/2017"
"Wolverhampton City Council","http://opendatacommunities.org/id/metropolitan-district-council/wolverhampton","AMAZON UK RETAIL AMAZO","50.00","Adoption and Residence Team & Allowances","5999","Books","02/05/2017"
"Wolverhampton City Council","http://opendatacommunities.org/id/metropolitan-district-council/wolverhampton","Amazon UK Marketplace","295.85","Headstart Phase 3","5942","Computing - Consumables","02/05/2017"
"Wolverhampton City Council","http://opendatacommunities.org/id/metropolitan-district-council/wolverhampton","PAYPAL  123REGLIMIT","7.99","Technical Support","4816","Computing - Purchase of Software","02/05/2017"
"Wolverhampton City Council","http://opendatacommunities.org/id/metropolitan-district-council/wolverhampton","Trainline","135.15","CIN/CP Social Work Unit - Area 4","4112","Client Transport","02/05/2017"
"Wolverhampton City Council","http://opendatacommunities.org/id/metropolitan-district-council/wolverhampton","Trainline","119.85","CIN/CP Social Work Unit - Area 4","4112","Client Transport","02/05/2017"
"Wolverhampton City Council","http://opendatacommunities.org/id/metropolitan-district-council/wolverhampton","PREMIER APARTMENTS BIR","357.50","CIN/CP Social Work Unit - Area 6","7011","Accommodation Costs","02/05/2017"
"Wolverhampton City Council","http://opendatacommunities.org/id/metropolitan-district-council/wolverhampton","E018638 0000000","200.00","EIP Locality 7","6011","Grant Payments","02/05/2017"
"Wolverhampton City Council","http://opendatacommunities.org/id/metropolitan-district-council/wolverhampton","BRITANNIA","40.00","CIN/CP Social Work Unit - Area 1","7011","No Recourse to Public Funds","01/05/2017"
"Wolverhampton City Council","http://opendatacommunities.org/id/metropolitan-district-council/wolverhampton","SPORTSDIRECT.COM","33.98","EIP Locality 5","5941","Financial Assistance In Exceptional Circ","01/05/2017"
"Wolverhampton City Council","http://opendatacommunities.org/id/metropolitan-district-council/wolverhampton","Virgin Trains","355.65","Delivery & OCE Development","4112","Public Transport","01/05/2017"
"Wolverhampton City Council","http://opendatacommunities.org/id/metropolitan-district-council/wolverhampton","Amazon UK Marketplace","32.37","Education Business Partnership","5942","Equipment - Purchase","01/05/2017"
"Wolverhampton City Council","http://opendatacommunities.org/id/metropolitan-district-council/wolverhampton","Amazon UK Marketplace","2.48","Education Business Partnership","5942","Equipment - Purchase","01/05/2017"
"Wolverhampton City Council","http://opendatacommunities.org/id/metropolitan-district-council/wolverhampton","Amazon UK Marketplace","3.32","Education Business Partnership","5942","Equipment - Purchase","01/05/2017"
"Wolverhampton City Council","http://opendatacommunities.org/id/metropolitan-district-council/wolverhampton","WALLPAPER WAREHOUSE","69.58","Cemeteries","5231","Materials","01/05/2017"
"Wolverhampton City Council","http://opendatacommunities.org/id/metropolitan-district-council/wolverhampton","FACEBK  PDE67C2JC2","12.94","Headstart Phase 3","7311","Marketing \ Non-staff advertising","01/05/2017"
"Wolverhampton City Council","http://opendatacommunities.org/id/metropolitan-district-council/wolverhampton","FACEBK  NDE67C2JC2","16.86","Headstart Phase 3","7311","Marketing \ Non-staff advertising","01/05/2017"
"Wolverhampton City Council","http://opendatacommunities.org/id/metropolitan-district-council/wolverhampton","FACEBK 8AZM4BAA82","93.71","Communications & Marketing - General","7311","Marketing \ Non-staff advertising","01/05/2017"
"Wolverhampton City Council","http://opendatacommunities.org/id/metropolitan-district-council/wolverhampton","FACEBK TAZM4BAA82","16.29","Communications & Marketing - General","7311","Marketing \ Non-staff advertising","01/05/2017"
"Wolverhampton City Council","http://opendatacommunities.org/id/metropolitan-district-council/wolverhampton","HM PASSPORT OFFICE","46.00","LAC Team","9399","Financial Assistance In Exceptional Circ","01/05/2017"
"Wolverhampton City Council","http://opendatacommunities.org/id/metropolitan-district-council/wolverhampton","Amazon UK Marketplace","18.40","Strategic ICTS (ICT Serv Budget)","5942","Books","01/05/2017"
"Wolverhampton City Council","http://opendatacommunities.org/id/metropolitan-district-council/wolverhampton","ITUNES.COM/BILL","0.79","Strategic ICTS (ICT Serv Budget)","5735","Computing - Purchase of Software","01/05/2017"
"Wolverhampton City Council","http://opendatacommunities.org/id/metropolitan-district-council/wolverhampton","SCREWFIX DIRECT","24.99","Caretakers Community Centre","5211","Materials","01/05/2017"
"Wolverhampton City Council","http://opendatacommunities.org/id/metropolitan-district-council/wolverhampton","FACEBK AC6ZTC6AR2","51.14","Healthy Lifestyles","7311","Marketing \ Non-staff advertising","01/05/2017"
"Wolverhampton City Council","http://opendatacommunities.org/id/metropolitan-district-council/wolverhampton","WM MORRISONS","68.25","Upper Pendeford Farm Childrens Home","5411","Provisions (Not for resale)","01/05/2017"
"Wolverhampton City Council","http://opendatacommunities.org/id/metropolitan-district-council/wolverhampton","HILTON","129.80","Curatorial - Cultural Learning","3504","Subsistence","01/05/2017"
"Wolverhampton City Council","http://opendatacommunities.org/id/metropolitan-district-council/wolverhampton","STEIGENBERGER HOTELS","265.84","Curatorial - Cultural Learning","3643","Subsistence","01/05/2017"
"Wolverhampton City Council","http://opendatacommunities.org/id/metropolitan-district-council/wolverhampton","WM MORRISONS","13.60","Headstart Phase 3","5411","Cleaning Supplies and Materials","01/05/2017"
"Wolverhampton City Council","http://opendatacommunities.org/id/metropolitan-district-council/wolverhampton","WWW.LEWIS-PLAST.CO.UK","96.79","Telecare","5047","Services - Professional Fees","01/05/2017"
"Wolverhampton City Council","http://opendatacommunities.org/id/metropolitan-district-council/wolverhampton","CT WOLVERHAMPTON","65.00","CIN/CP Social Work Unit - Area 2","8398","No Recourse to Public Funds","01/05/2017"
"Wolverhampton City Council","http://opendatacommunities.org/id/metropolitan-district-council/wolverhampton","EDMUNDSON ELECTRICAL L","23.74","Hickman Avenue Depot","5065","R&M - Departmental planned (external)","01/05/2017"
"Wolverhampton City Council","http://opendatacommunities.org/id/metropolitan-district-council/wolverhampton","WWW.MOBILEFUN.CO.U","9.98","Private Sector Housing","4812","Comms - Mobile Telephones","01/05/2017"
"Wolverhampton City Council","http://opendatacommunities.org/id/metropolitan-district-council/wolverhampton","MIDLAND DOMESTIC","207.00","EIP Locality 1","5722","Financial Assistance In Exceptional Circ","01/05/2017"
"Wolverhampton City Council","http://opendatacommunities.org/id/metropolitan-district-council/wolverhampton","SAINSBURYS 2040","8.40","Duke Street Bungalows","5411","Provisions (Not for resale)","01/05/2017"
"Wolverhampton City Council","http://opendatacommunities.org/id/metropolitan-district-council/wolverhampton","Virgin Trains","100.55","Charlotte Hodes","4112","Public Transport","01/05/2017"
"Wolverhampton City Council","http://opendatacommunities.org/id/metropolitan-district-council/wolverhampton","WWW.BLOCHOTELS.COM","46.50","Charlotte Hodes","7011","Accommodation Costs","01/05/2017"
"Wolverhampton City Council","http://opendatacommunities.org/id/metropolitan-district-council/wolverhampton","ARGOS RETAIL GROUP","151.61","Towers Outdoor Education Centre","5310","Equipment - Purchase","01/05/2017"
"Wolverhampton City Council","http://opendatacommunities.org/id/metropolitan-district-council/wolverhampton","Amazon Svcs Europe,SAR","26.59","Towers Outdoor Education Centre","5942","Equipment - Purchase","01/05/2017"
"Wolverhampton City Council","http://opendatacommunities.org/id/metropolitan-district-council/wolverhampton","BLAS AR FWYD CYF","155.75","Towers Outdoor Education Centre","5812","Provisions (Not for resale)","01/05/2017"
"Wolverhampton City Council","http://opendatacommunities.org/id/metropolitan-district-council/wolverhampton","CHEMSOL CYMRU LTD","107.00","Towers Outdoor Education Centre","5199","Equipment - Purchase","01/05/2017"
"Wolverhampton City Council","http://opendatacommunities.org/id/metropolitan-district-council/wolverhampton","Trainline","40.29","Children & Young People Support Costs","4112","Public Transport","01/05/2017"
"Wolverhampton City Council","http://opendatacommunities.org/id/metropolitan-district-council/wolverhampton","WIX.COM","6.94","Technical Support","5817","Computing - Purchase of Software","01/05/2017"
"Wolverhampton City Council","http://opendatacommunities.org/id/metropolitan-district-council/wolverhampton","WWW.ARGOS.CO.UK","13.12","Head of Service - LAC","5310","Equipment - Purchase","01/05/2017"
"Wolverhampton City Council","http://opendatacommunities.org/id/metropolitan-district-council/wolverhampton","FACEBK BJ27DBWE92","28.89","Civic Halls Non Direct Management A/C","7311","Marketing \ Non-staff advertising","01/05/2017"
"Wolverhampton City Council","http://opendatacommunities.org/id/metropolitan-district-council/wolverhampton","FACEBK AJ27DBWE92","370.04","Audience Development","7311","Marketing \ Non-staff advertising","01/05/2017"
"Wolverhampton City Council","http://opendatacommunities.org/id/metropolitan-district-council/wolverhampton","WOLVERHAMPTON CITY COU","21.00","The Little Civic","9399","Services - General Licences","01/05/2017"
"Wolverhampton City Council","http://opendatacommunities.org/id/metropolitan-district-council/wolverhampton","WOLVERHAMPTON CITY COU","21.00","The Little Civic","9399","Services - General Licences","01/05/2017"
"Wolverhampton City Council","http://opendatacommunities.org/id/metropolitan-district-council/wolverhampton","BRITANNIA WOLVERHA","-78.33","CIN/CP Social Work Unit - Area 4","7011","Client Transport","01/05/2017"
"Wolverhampton City Council","http://opendatacommunities.org/id/metropolitan-district-council/wolverhampton","Trainline","181.05","CIN/CP Social Work Unit - Area 4","4112","Client Transport","01/05/2017"
"Wolverhampton City Council","http://opendatacommunities.org/id/metropolitan-district-council/wolverhampton","BRITANNIA","127.00","CIN/CP Social Work Unit - Area 1","7011","No Recourse to Public Funds","01/05/2017"
